{"text_format":"1","workbook":"xlsx","n_sheets":4,"sheets":["入力フォーム ","Sheet2","産前産後休業取得届","記入方法等"],"not_rendered":{"charts":0,"images":2,"macros":1,"external_links":0,"defined_names":2,"comments":0,"pivot_tables":0},"unopened":[],"bounds":{"document_bytes":16777216,"sheet_cells":100000,"rows_first":2000,"rows_last":500,"rows_between":2000,"halvings":0,"cell_chars":16384,"cell_head_chars":4096},"cells_cut":0,"cells_raw":0,"read":"whole","date_system":"1900"}

{"sheet":"入力フォーム ","index":0,"n_rows":62,"n_cols":202,"rows_kept":62,"cut":false,"hidden":false,"merged":[[18,47,18,55],[31,44,31,45],[28,1,31,1],[30,36,30,37],[30,38,30,40],[30,41,30,43],[30,44,30,45],[31,2,31,15],[31,16,31,21],[31,22,31,24],[31,25,31,27],[31,28,31,29],[31,30,31,32],[22,2,22,49],[26,16,26,51],[29,16,29,23],[30,2,30,15],[30,16,30,21],[30,22,30,24],[30,25,30,27],[30,28,30,29],[30,30,30,32],[25,44,25,45],[23,2,23,15],[24,2,24,15],[23,16,24,45],[21,33,21,35],[21,36,21,37],[21,38,21,40],[21,41,21,43],[21,44,21,45],[19,2,19,15],[19,16,19,23],[21,2,21,15],[21,16,21,21],[21,22,21,24],[21,25,21,27],[21,28,21,29],[21,30,21,32],[20,30,20,32],[20,33,20,35],[20,36,20,37],[20,38,20,40],[20,41,20,43],[20,44,20,45],[18,33,18,35],[18,36,18,37],[18,38,18,40],[18,41,18,43],[18,44,18,45],[20,2,20,15],[20,16,20,21],[20,22,20,24],[20,25,20,27],[20,28,20,29],[35,1,36,26],[37,1,39,9],[37,10,39,41],[18,2,18,15],[18,16,18,21],[18,22,18,24],[18,25,18,27],[18,28,18,29],[18,30,18,32],[33,30,33,32],[33,33,33,35],[33,36,33,37],[33,38,33,40],[33,41,33,43],[25,33,25,35],[25,36,25,37],[25,38,25,40],[25,41,25,43],[25,2,25,15],[25,16,25,21],[25,22,25,24],[25,25,25,27],[25,28,25,29],[25,30,25,32],[33,44,33,45],[33,2,33,15],[33,16,33,21],[33,22,33,24],[33,25,33,27],[33,28,33,29],[26,2,26,15],[30,33,30,35],[29,2,29,15],[28,30,28,32],[28,33,28,35],[28,36,28,37],[28,38,28,40],[28,41,28,43],[28,44,28,45],[28,2,28,15],[28,16,28,21],[28,22,28,24],[28,25,28,27],[28,28,28,29],[31,33,31,35],[31,36,31,37],[31,38,31,40],[31,41,31,43],[14,22,14,23],[14,24,14,25],[14,26,14,27],[17,33,17,35],[17,36,17,37],[17,38,17,40],[17,41,17,43],[17,44,17,45],[17,2,17,15],[17,16,17,21],[17,22,17,24],[17,25,17,27],[17,28,17,29],[17,30,17,32],[11,31,11,37],[13,1,26,1],[13,2,13,15],[13,16,13,24],[13,26,13,28],[13,29,13,31],[14,2,14,15],[15,2,15,15],[15,16,16,18],[15,19,15,30],[15,31,16,33],[15,34,15,45],[16,2,16,15],[16,19,16,30],[16,34,16,45],[14,28,14,29],[14,30,14,31],[14,32,14,33],[14,34,14,35],[14,36,14,37],[14,38,14,39],[14,16,14,17],[14,18,14,19],[14,20,14,21],[6,2,6,15],[6,16,6,24],[7,2,8,15],[7,16,7,17],[7,18,7,22],[7,23,7,24],[11,2,11,15],[11,16,11,21],[11,23,11,29],[4,30,4,31],[4,32,4,33],[5,2,5,15],[5,16,5,17],[5,18,5,19],[5,20,5,21],[5,22,5,23],[5,24,5,25],[0,1,0,60],[4,1,11,1],[4,2,4,15],[4,16,4,17],[4,18,4,19],[4,20,4,21],[4,22,4,23],[4,24,4,25],[4,26,4,27],[4,28,4,29],[7,25,7,31],[8,16,8,43],[9,2,9,15],[9,16,9,43],[10,2,10,15],[10,16,10,43],[31,47,31,52],[31,53,31,64],[20,47,20,52],[21,47,21,52],[20,53,20,64],[21,53,21,64],[19,47,19,64],[29,47,29,64],[30,47,30,52],[30,53,30,64]]}
[null,"産前産後休業取得者申出書/変更（終了）届入力フォーム"]
[]
[]
[]
[null,"提出者記入欄","厚生年金保険\n事業所整理記号",null,null,null,null,null,null,null,null,null,null,null,null,null,null,null,null,null,null,null,null,null,"-"]
[null,null,"厚生年金保険\n事業所番号"]
[null,null,"健康保険\n事業所記号"]
[null,null,"事業所\n所在地",null,null,null,null,null,null,null,null,null,null,null,null,null,"〒",null,null,null,null,null,null,"-"]
[]
[null,null,"事業所\n名 　称"]
[null,null,"事業主\n氏　 名"]
[null,null,"電話番号",null,null,null,null,null,null,null,null,null,null,null,null,null,null,null,null,null,null,null,"(",null,null,null,null,null,null,null,")"]
[]
[null,"共通記載欄（新規申出の場合は共通記載欄のみ記入）","被保険者\n整理番号"]
[null,null,"個人番号\nまたは基礎年金番号"]
[null,null,"フリガナ",null,null,null,null,null,null,null,null,null,null,null,null,null,"(氏)",null,null,null,null,null,null,null,null,null,null,null,null,null,null,"(名)"]
[null,null,"被保険者氏名"]
[null,null,"被保険者\n生年月日",null,null,null,null,null,null,null,null,null,null,null,null,null,"選択してください",null,null,null,null,null,null,null,null,null,null,null,"年",null,null,null,null,null,null,null,"月",null,null,null,null,null,null,null,"日"]
[null,null,"出産予定\n年月日",null,null,null,null,null,null,null,null,null,null,null,null,null,"9.令和",null,null,null,null,null,null,null,null,null,null,null,"年",null,null,null,null,null,null,null,"月",null,null,null,null,null,null,null,"日"]
[null,null,"区分",null,null,null,null,null,null,null,null,null,null,null,null,null,"選択してください",null,null,null,null,null,null,null,null,null,null,null,null,null,null,null,null,null,null,null,null,null,null,null,null,null,null,null,null,null,null,"出産予定日から算出する\n開始日・終了日目安"]
[null,null,"産前産後休業\n開始年月日",null,null,null,null,null,null,null,null,null,null,null,null,null,"9.令和",null,null,null,null,null,null,null,null,null,null,null,"年",null,null,null,null,null,null,null,"月",null,null,null,null,null,null,null,"日",null,null,{"$f":"IF(Q20=\"1.　多胎\",\"産前98日\",\"産前42日\")","v":"産前42日"},null,null,null,null,null,{"$f":"IF(Q20=\"1.　多胎\",DATEVALUE(\"R\"&W19&Z19&\".\"&AE19&AH19&\".\"&AM19&AP19)-97,DATEVALUE(\"R\"&W19&Z19&\".\"&AE19&AH19&\".\"&AM19&AP19)-41)","v":{"$error":"#VALUE!"}}]
[null,null,"産前産後休業\n終了予定年月日",null,null,null,null,null,null,null,null,null,null,null,null,null,"9.令和",null,null,null,null,null,null,null,null,null,null,null,"年",null,null,null,null,null,null,null,"月",null,null,null,null,null,null,null,"日",null,null,"産後56日",null,null,null,null,null,{"$f":"DATEVALUE(\"R\"&W19&Z19&\".\"&AE19&AH19&\".\"&AM19&AP19)+56","v":{"$error":"#VALUE!"}}]
[null,null,"以下の項目は、出産後に申出書を提出する場合のみ記入してください。"]
[null,null,"R４年１０月より子の氏名の記入が扶養となりました"]
[null,null,"養育する子の氏名"]
[null,null,"出産生年月日",null,null,null,null,null,null,null,null,null,null,null,null,null,"9.令和",null,null,null,null,null,null,null,null,null,null,null,"年",null,null,null,null,null,null,null,"月",null,null,null,null,null,null,null,"日"]
[null,null,"備考"]
[null,"出産（予定）日・産前産後休業終了（予定）日を変更する場合　※必ず共通記載欄も記入してください。"]
[null,"変更","出産（予定）\n年月日",null,null,null,null,null,null,null,null,null,null,null,null,null,"9.令和",null,null,null,null,null,null,null,null,null,null,null,"年",null,null,null,null,null,null,null,"月",null,null,null,null,null,null,null,"日"]
[null,null,"区分",null,null,null,null,null,null,null,null,null,null,null,null,null,"選択してください",null,null,null,null,null,null,null,null,null,null,null,null,null,null,null,null,null,null,null,null,null,null,null,null,null,null,null,null,null,null,"変更後の出産（予定）から算出する\n開始日・終了日目安"]
[null,null,"産前産後休業\n開始年月日",null,null,null,null,null,null,null,null,null,null,null,null,null,"9.令和",null,null,null,null,null,null,null,null,null,null,null,"年",null,null,null,null,null,null,null,"月",null,null,null,null,null,null,null,"日",null,null,{"$f":"IF(Q30=\"1.　多胎\",\"産前98日\",\"産前42日\")","v":"産前42日"},null,null,null,null,null,{"$f":"IF(Q30=\"1.　多胎\",DATEVALUE(\"R\"&W29&Z29&\".\"&AE29&AH29&\".\"&AM29&AP29)-97,DATEVALUE(\"R\"&W29&Z29&\".\"&AE29&AH29&\".\"&AM29&AP29)-41)","v":{"$error":"#VALUE!"}}]
[null,null,"産前産後休業\n終了予定年月日",null,null,null,null,null,null,null,null,null,null,null,null,null,"9.令和",null,null,null,null,null,null,null,null,null,null,null,"年",null,null,null,null,null,null,null,"月",null,null,null,null,null,null,null,"日",null,null,"産後56日",null,null,null,null,null,{"$f":"DATEVALUE(\"R\"&W29&Z29&\".\"&AE29&AH29&\".\"&AM29&AP29)+56","v":{"$error":"#VALUE!"}}]
[null,"予定より早く産前産後休業を終了した場合　※必ず共通記載欄も記入してください。"]
[null,"終了","産前産後休業\n終了年月日",null,null,null,null,null,null,null,null,null,null,null,null,null,"9.令和",null,null,null,null,null,null,null,null,null,null,null,"年",null,null,null,null,null,null,null,"月",null,null,null,null,null,null,null,"日"]
[]
[null,"社会保険労務士記載欄"]
[]
[null,"氏　名　等"]
[]
[]
[]
[]
[]
[]
[]
[]
[]
[]
[]
[]
[]
[]
[]
[]
[]
[]
[]
[]
[]
[]
[]
[null,null,null,null,null,null,null,null,null,null,null,null,null,null,null,null,null,null,null,null,null,null,null,null,null,null,null,null,null,null,null,null,null,null,null,null,null,null,null,null,null,null,null,null,null,null,null,null,null,null,null,null,null,null,null,null,null,null,null,null,null,null,null,null,null,null,null,null,null,null,null,null,null,null,null,null,null,null,null,null,null,null,null,null,null,null,null,null,null,null,null,null,null,null,null,null,null,null,null,null,null,null,null,null,null,null,null,null,null,null,null,null,null,null,null,null,null,null,null,null,null,null,null,null,null,null,null,null,null,null,null,null,null,null,null,null,null,null,null,null,null,null,null,null,null,null,null,null,null,null,null,null,null,null,null,null,null,null,null,null,null,null,null,null,null,null,null,null,null,null,null,null,null,null,null,null,null,null,null,null,null,null,null,null,null,null,null,null,null,null,null,null,null,null,null,null,null,null,null,null,null,{"$f":"'入力フォーム '!AE15:AF15","v":{"$error":"#VALUE!"}}]

{"sheet":"Sheet2","index":1,"n_rows":17,"n_cols":14,"rows_kept":17,"cut":false,"hidden":true,"merged":[]}
[]
[]
["選択してください",null,"選択してください",null,"選択してください",null,"該当する項目を選択してください",null,"選択してください"]
["5. 昭和",null,"1. 男",null,"0.　単胎",null,"0. 　該当なし",null,"0. なし"]
["7. 平成",null,"2. 女",null,"1.　多胎",null,"1. 　パパママ育休該当",null,"1. 海外在住"]
["9. 令和",null,null,null,null,null,"2. 　その他",null,"2. 短期在留"]
[null,null,null,null,null,null,null,null,"3. その他"]
["選択してください"]
["7. 平成"]
["9. 令和"]
[]
["選択してください",null,null,null,null,"　"]
["4. 　退職等",null,null,null,null,"✓",null,null,null,"令和","年","月","日退職等","日"]
["5. 　死亡",null,null,null,null,null,null,null,null,"令和","年","月","日死亡"]
["7. 　75歳到達（健康保険のみ喪失）"]
["9. 　障害認定（健康保険のみ喪失）"]
["11.社会保障協定"]

{"sheet":"産前産後休業取得届","index":2,"n_rows":219,"n_cols":223,"rows_kept":219,"cut":false,"hidden":false,"merged":[[106,135,114,148],[106,149,107,152],[106,153,107,156],[106,157,107,160],[106,161,107,164],[106,165,107,168],[106,169,107,172],[106,173,114,225],[108,149,114,152],[108,153,114,156],[108,157,114,160],[108,161,114,164],[108,165,114,168],[108,169,114,172],[106,50,107,53],[108,50,114,53],[106,54,114,106],[106,30,107,33],[106,34,107,37],[106,38,107,41],[106,42,107,45],[106,46,107,49],[108,30,114,33],[108,34,114,37],[108,38,114,41],[108,42,114,45],[108,46,114,49],[106,16,114,29],[79,200,87,207],[129,73,137,80],[129,81,137,88],[70,140,71,153],[129,192,137,199],[129,200,137,207],[70,73,72,82],[73,73,75,82],[76,73,78,82],[88,87,89,90],[88,91,89,94],[88,95,89,98],[88,99,89,102],[90,87,96,90],[90,91,96,94],[90,95,96,98],[90,99,96,102],[90,30,96,33],[90,34,96,37],[70,83,71,86],[88,83,89,86],[81,42,87,45],[72,83,78,86],[6,140,7,157],[6,158,6,192],[7,37,7,71],[7,158,7,192],[70,95,71,98],[74,35,78,53],[70,87,71,90],[70,91,71,94],[72,87,78,90],[72,91,78,94],[70,99,71,102],[72,99,78,102],[72,95,78,98],[9,122,9,127],[9,134,9,137],[9,138,9,139],[9,140,9,143],[9,144,9,148],[51,38,53,48],[51,26,53,35],[51,36,53,37],[39,62,43,87],[6,19,7,36],[6,38,6,70],[9,25,9,29],[9,21,9,24],[72,16,73,34],[88,73,96,82],[138,54,139,72],[88,42,89,45],[88,46,89,49],[88,50,89,53],[88,54,89,72],[67,35,69,46],[79,42,80,45],[47,62,53,113],[70,21,71,34],[61,47,69,106],[61,35,62,46],[63,35,66,46],[61,16,69,34],[74,16,78,34],[11,59,16,69],[11,70,16,83],[138,16,146,29],[129,42,130,45],[140,95,146,98],[129,89,131,106],[129,46,130,49],[129,50,130,53],[138,95,139,98],[138,99,139,102],[131,38,137,41],[131,42,137,45],[131,46,137,49],[131,50,137,53],[138,103,139,106],[140,99,146,102],[140,103,146,106],[138,83,139,86],[140,83,146,86],[138,91,139,94],[138,50,139,53],[134,7,135,15],[136,7,137,15],[138,7,139,15],[140,87,146,90],[140,30,146,33],[131,30,137,33],[131,34,137,37],[138,30,139,33],[138,34,139,37],[132,89,134,106],[135,89,137,106],[138,38,139,41],[61,1,124,1],[11,7,16,13],[11,26,16,28],[11,23,16,25],[11,29,16,31],[11,32,16,34],[11,35,16,37],[11,38,16,40],[79,7,80,15],[115,7,116,15],[117,7,123,15],[88,38,89,41],[88,7,89,15],[106,7,107,15],[108,7,114,15],[79,16,87,29],[81,38,87,41],[115,16,123,106],[79,30,80,33],[70,7,71,15],[55,3,56,60],[70,103,71,106],[72,103,78,106],[79,46,80,49],[20,24,22,30],[23,14,30,58],[51,17,53,23],[51,24,53,25],[79,50,80,53],[81,46,87,49],[81,30,87,33],[79,38,80,41],[81,34,87,37],[79,34,80,37],[63,7,66,15],[67,7,69,15],[72,7,74,15],[75,7,78,15],[41,14,50,58],[81,54,87,72],[81,50,87,53],[72,35,73,53],[70,35,71,53],[70,54,71,72],[72,54,74,72],[75,54,78,72],[44,62,46,87],[58,3,59,112],[79,54,80,72],[88,30,89,33],[153,7,154,15],[153,38,154,41],[88,34,89,37],[90,83,96,86],[90,54,92,72],[93,54,96,72],[79,89,81,106],[82,89,84,106],[85,89,87,106],[88,103,89,106],[79,73,87,80],[79,81,87,88],[149,2,151,62],[129,6,146,6],[129,7,130,15],[129,16,137,29],[140,91,146,94],[138,42,139,45],[138,46,139,49],[138,73,146,82],[138,87,139,90],[140,34,146,37],[9,128,9,131],[9,132,9,133],[11,125,53,125],[11,126,16,132],[11,133,16,135],[55,122,56,179],[58,122,59,231],[61,120,124,120],[61,125,123,125],[61,126,62,134],[61,135,69,153],[61,154,62,165],[61,166,69,170],[61,171,69,175],[61,176,69,180],[61,181,69,185],[61,186,69,190],[11,139,16,141],[11,142,16,144],[11,145,16,147],[11,148,16,150],[11,151,16,153],[11,157,16,159],[18,126,30,132],[18,133,19,173],[20,133,22,135],[20,136,22,140],[20,141,22,142],[20,143,22,149],[23,133,30,177],[11,136,16,138],[39,181,43,206],[41,133,50,177],[11,154,16,156],[31,126,41,132],[31,133,40,177],[70,214,71,217],[61,191,69,195],[61,196,69,200],[61,201,69,205],[61,206,69,210],[61,211,69,215],[61,216,69,220],[70,126,71,134],[43,126,49,132],[44,181,46,206],[47,181,53,232],[50,126,53,132],[51,136,53,142],[51,143,53,144],[51,145,53,154],[51,155,53,156],[51,157,53,167],[61,221,69,225],[63,126,66,134],[63,154,66,165],[67,126,69,134],[67,154,69,165],[70,192,72,201],[72,214,78,217],[72,218,78,221],[72,222,78,225],[70,218,71,221],[75,126,78,134],[75,173,78,191],[70,154,71,172],[70,173,71,191],[70,202,71,205],[70,206,71,209],[70,210,71,213],[73,192,75,201],[76,192,78,201],[72,135,73,153],[72,154,73,172],[72,173,74,191],[72,202,78,205],[72,206,78,209],[72,210,78,213],[74,135,78,153],[74,154,78,172],[79,126,80,134],[79,135,87,148],[79,149,80,152],[79,153,80,156],[79,157,80,160],[79,161,80,164],[79,165,80,168],[79,169,80,172],[79,173,80,191],[81,126,83,134],[81,149,87,152],[81,153,87,156],[81,157,87,160],[81,161,87,164],[81,165,87,168],[81,169,87,172],[81,173,87,191],[82,208,84,225],[84,126,87,134],[85,208,87,225],[79,192,87,199],[70,222,71,225],[72,126,74,134],[88,157,89,160],[88,161,89,164],[88,165,89,168],[88,169,89,172],[88,173,89,191],[88,192,96,201],[88,202,89,205],[88,206,89,209],[79,208,81,225],[88,210,89,213],[88,214,89,217],[88,218,89,221],[88,222,89,225],[90,206,96,209],[90,210,96,213],[90,214,96,217],[90,218,96,221],[90,222,96,225],[90,126,92,134],[90,149,96,152],[90,153,96,156],[90,157,96,160],[90,161,96,164],[90,165,96,168],[90,169,96,172],[90,173,92,191],[90,202,96,205],[93,126,96,134],[93,173,96,191],[88,126,89,134],[88,135,96,148],[88,149,89,152],[88,153,89,156],[97,126,105,225],[106,126,107,134],[108,126,114,134],[129,165,130,168],[129,169,130,172],[129,173,130,191],[129,208,131,225],[131,126,133,134],[131,149,137,152],[131,153,137,156],[131,157,137,160],[131,161,137,164],[131,165,137,168],[131,169,137,172],[131,173,137,191],[132,208,134,225],[135,208,137,225],[136,126,137,134],[129,135,137,148],[134,126,135,134],[115,126,116,134],[115,135,123,225],[117,126,123,134],[125,121,127,206],[138,126,139,134],[138,135,146,148],[138,149,139,152],[138,153,139,156],[138,157,139,160],[138,161,139,164],[138,165,139,168],[138,169,139,172],[138,173,139,191],[140,126,142,134],[140,149,146,152],[143,126,146,134],[143,173,146,191],[140,153,146,156],[140,157,146,160],[140,161,146,164],[140,165,146,168],[140,169,146,172],[140,173,142,191],[138,202,139,205],[138,206,139,209],[138,210,139,213],[138,214,139,217],[138,218,139,221],[138,222,139,225],[140,206,146,209],[140,210,146,213],[140,218,146,221],[140,222,146,225],[140,214,146,217],[140,202,146,205],[153,125,161,125],[153,157,154,160],[153,161,154,164],[153,165,154,168],[153,169,154,172],[155,126,161,134],[155,149,161,152],[155,153,161,156],[155,157,161,160],[155,161,161,164],[155,165,161,168],[155,169,161,172],[153,126,154,134],[153,135,161,148],[153,149,154,152],[153,153,154,156],[129,125,146,125],[129,126,130,134],[129,149,130,152],[129,153,130,156],[129,157,130,160],[129,161,130,164],[138,192,146,201],[218,0,222,117],[165,120,172,237],[173,120,177,237],[183,120,187,237],[188,120,192,237],[193,120,197,237],[198,120,202,237],[203,120,207,237],[208,120,212,237],[213,120,217,237],[218,120,222,237],[165,0,172,117],[203,0,207,117],[208,0,212,117],[178,121,182,237],[213,0,217,117],[178,1,182,117],[183,0,187,117],[149,121,151,181],[188,0,192,117],[193,0,197,117],[198,0,202,117],[0,71,1,78],[0,79,1,86],[0,87,1,94],[0,95,1,102],[0,103,1,110],[0,111,1,118],[9,3,9,8],[31,7,41,13],[9,13,9,14],[9,19,9,20],[9,9,9,12],[9,15,9,18],[11,14,16,16],[11,17,16,19],[11,20,16,22],[18,7,30,13],[18,14,19,54],[20,14,22,16],[20,17,22,21],[20,22,22,23],[153,46,154,49],[153,50,154,53],[153,30,154,33],[153,34,154,37],[153,16,161,29],[84,7,87,15],[90,7,92,15],[93,7,96,15],[125,2,127,87],[153,6,161,6],[140,54,142,72],[143,54,146,72],[140,7,142,15],[143,7,146,15],[131,7,133,15],[129,30,130,33],[129,34,130,37],[129,38,130,41],[97,7,105,106],[90,103,96,106],[140,38,146,41],[140,42,146,45],[140,46,146,49],[140,50,146,53],[2,111,4,118],[173,0,177,117],[131,54,137,72],[129,54,130,72],[61,6,123,6],[81,7,83,15],[61,7,62,15],[90,38,96,41],[90,42,96,45],[90,46,96,49],[90,50,96,53],[155,30,161,33],[155,34,161,37],[155,38,161,41],[155,42,161,45],[155,46,161,49],[155,50,161,53],[11,6,53,6],[43,7,49,13],[31,14,40,58],[50,7,53,13],[88,16,96,29],[155,7,161,15],[153,42,154,45],[0,55,1,62],[2,55,4,62],[0,63,1,70],[2,63,4,70],[2,71,4,78],[2,79,4,86],[2,87,4,94],[2,95,4,102],[2,103,4,110]]}
[null,null,null,null,null,null,null,null,null,null,null,null,null,null,null,null,null,null,null,null,null,null,null,null,null,null,null,null,null,null,null,null,null,null,null,null,null,null,null,null,null,null,null,null,null,null,null,null,null,null,null,null,null,null,null,"常務理事",null,null,null,null,null,null,null,"事務局長",null,null,null,null,null,null,null,"課　長",null,null,null,null,null,null,null,"担当課長",null,null,null,null,null,null,null,"係　長",null,null,null,null,null,null,null,"係",null,null,null,null,null,null,null,"係"]
[]
[]
[]
[]
[]
[null,null,null,null,null,null,null,null,null,null,null,null,null,null,null,null,null,null,null,"健　康　保　険",null,null,null,null,null,null,null,null,null,null,null,null,null,null,null,null,null,null,"産前産後休業取得者",null,null,null,null,null,null,null,null,null,null,null,null,null,null,null,null,null,null,null,null,null,null,null,null,null,null,null,null,null,null,null,null,null,null,null,null,null,null,null,null,null,null,null,null,null,null,null,null,null,null,null,null,null,null,null,null,null,null,null,null,null,null,null,null,null,null,null,null,null,null,null,null,null,null,null,null,null,null,null,null,null,null,null,null,null,null,null,null,null,null,null,null,null,null,null,null,null,null,null,null,null,"厚生年金保険",null,null,null,null,null,null,null,null,null,null,null,null,null,null,null,null,null,"産前産後休業取得者"]
[null,null,null,null,null,null,null,null,null,null,null,null,null,null,null,null,null,null,null,null,null,null,null,null,null,null,null,null,null,null,null,null,null,null,null,null,null,"申出書/変更（終了）届",null,null,null,null,null,null,null,null,null,null,null,null,null,null,null,null,null,null,null,null,null,null,null,null,null,null,null,null,null,null,null,null,null,null,null,null,null,null,null,null,null,null,null,null,null,null,null,null,null,null,null,null,null,null,null,null,null,null,null,null,null,null,null,null,null,null,null,null,null,null,null,null,null,null,null,null,null,null,null,null,null,null,null,null,null,null,null,null,null,null,null,null,null,null,null,null,null,null,null,null,null,null,null,null,null,null,null,null,null,null,null,null,null,null,null,null,null,null,null,null,"申出書/変更（終了）届"]
[]
[null,null,null,"令和",null,null,null,null,null,null,null,null,null,"年",null,null,null,null,null,"月",null,null,null,null,null,"日提出",null,null,null,null,null,null,null,null,null,null,null,null,null,null,null,null,null,null,null,null,null,null,null,null,null,null,null,null,null,null,null,null,null,null,null,null,null,null,null,null,null,null,null,null,null,null,null,null,null,null,null,null,null,null,null,null,null,null,null,null,null,null,null,null,null,null,null,null,null,null,null,null,null,null,null,null,null,null,null,null,null,null,null,null,null,null,null,null,null,null,null,null,null,null,null,null,"令和",null,null,null,null,null,null,null,null,null,"年",null,null,null,null,null,"月",null,null,null,null,null,"日提出"]
[]
[null,null,null,null,null,null,null,"事 業 所\n整理記号",null,null,null,null,null,null,null,null,null,null,null,null,{"$f":"'入力フォーム '!U5:V5&\"\"","v":""},null,null,{"$f":"'入力フォーム '!W5&\"\"","v":""},null,null,"―",null,null,{"$f":"'入力フォーム '!AA5&\"\"","v":""},null,null,{"$f":"'入力フォーム '!AC5&\"\"","v":""},null,null,{"$f":"'入力フォーム '!AE5&\"\"","v":""},null,null,{"$f":"'入力フォーム '!AG5&\"\"","v":""},null,null,null,null,null,null,null,null,null,null,null,null,null,null,null,null,null,null,null,null,"健康保険\n事業所記号",null,null,null,null,null,null,null,null,null,null,{"$f":"'入力フォーム '!Q7&\"\"","v":""},null,null,null,null,null,null,null,null,null,null,null,null,null,null,null,null,null,null,null,null,null,null,null,null,null,null,null,null,null,null,null,null,null,null,null,null,null,null,null,null,null,null,null,null,null,null,null,null,null,null,null,null,null,null,null,"事 業 所\n整理記号",null,null,null,null,null,null,null,null,null,null,null,null,{"$f":"U12","v":""},null,null,{"$f":"X12","v":""},null,null,"―",null,null,{"$f":"AD12","v":""},null,null,{"$f":"AG12","v":""},null,null,{"$f":"AJ12","v":""},null,null,{"$f":"AM12","v":""}]
[]
[]
[]
[]
[]
[]
[null,null,null,null,null,null,null,"事業所\n所在地",null,null,null,null,null,null,"届書記入の個人番号に誤りがないことを確認しました。",null,null,null,null,null,null,null,null,null,null,null,null,null,null,null,null,null,null,null,null,null,null,null,null,null,null,null,null,null,null,null,null,null,null,null,null,null,null,null,null,null,null,null,null,null,null,null,null,null,null,null,null,null,null,null,null,null,null,null,null,null,null,null,null,null,null,null,null,null,null,null,null,null,null,null,null,null,null,null,null,null,null,null,null,null,null,null,null,null,null,null,null,null,null,null,null,null,null,null,null,null,null,null,null,null,null,null,null,null,null,null,"事業所\n所在地",null,null,null,null,null,null,"届書記入の個人番号に誤りがないことを確認しました。"]
[]
[null,null,null,null,null,null,null,null,null,null,null,null,null,null,"〒",null,null,{"$f":"'入力フォーム '!S8&\"\"","v":""},null,null,null,null,"-",null,{"$f":"'入力フォーム '!Z8&\"\"","v":""},null,null,null,null,null,null,null,null,null,null,null,null,null,null,null,null,null,null,null,null,null,null,null,null,null,null,null,null,null,null,null,null,null,null,null,null,null,null,null,null,null,null,null,null,null,null,null,null,null,null,null,null,null,null,null,null,null,null,null,null,null,null,null,null,null,null,null,null,null,null,null,null,null,null,null,null,null,null,null,null,null,null,null,null,null,null,null,null,null,null,null,null,null,null,null,null,null,null,null,null,null,null,null,null,null,null,null,null,"〒",null,null,{"$f":"R21","v":""},null,null,null,null,"-",null,{"$f":"Y21","v":""}]
[]
[]
[null,null,null,null,null,null,null,null,null,null,null,null,null,null,{"$f":"'入力フォーム '!Q9&\"\"","v":""},null,null,null,null,null,null,null,null,null,null,null,null,null,null,null,null,null,null,null,null,null,null,null,null,null,null,null,null,null,null,null,null,null,null,null,null,null,null,null,null,null,null,null,null,null,null,null,null,null,null,null,null,null,null,null,null,null,null,null,null,null,null,null,null,null,null,null,null,null,null,null,null,null,null,null,null,null,null,null,null,null,null,null,null,null,null,null,null,null,null,null,null,null,null,null,null,null,null,null,null,null,null,null,null,null,null,null,null,null,null,null,null,null,null,null,null,null,null,{"$f":"O24","v":""}]
[]
[]
[]
[]
[]
[]
[]
[null,null,null,null,null,null,null,"事業所\n名　称",null,null,null,null,null,null,{"$f":"'入力フォーム '!Q10&\"\"","v":""},null,null,null,null,null,null,null,null,null,null,null,null,null,null,null,null,null,null,null,null,null,null,null,null,null,null,null,null,null,null,null,null,null,null,null,null,null,null,null,null,null,null,null,null,null,null,null,null,null,null,null,null,null,null,null,null,null,null,null,null,null,null,null,null,null,null,null,null,null,null,null,null,null,null,null,null,null,null,null,null,null,null,null,null,null,null,null,null,null,null,null,null,null,null,null,null,null,null,null,null,null,null,null,null,null,null,null,null,null,null,null,"事業所\n名　称",null,null,null,null,null,null,{"$f":"O32","v":""}]
[]
[]
[]
[]
[]
[]
[]
[null,null,null,null,null,null,null,null,null,null,null,null,null,null,null,null,null,null,null,null,null,null,null,null,null,null,null,null,null,null,null,null,null,null,null,null,null,null,null,null,null,null,null,null,null,null,null,null,null,null,null,null,null,null,null,null,null,null,null,null,null,null,"社会保険労務士記載欄",null,null,null,null,null,null,null,null,null,null,null,null,null,null,null,null,null,null,null,null,null,null,null,null,null,null,null,null,null,null,null,null,null,null,null,null,null,null,null,null,null,null,null,null,null,null,null,null,null,null,null,null,null,null,null,null,null,null,null,null,null,null,null,null,null,null,null,null,null,null,null,null,null,null,null,null,null,null,null,null,null,null,null,null,null,null,null,null,null,null,null,null,null,null,null,null,null,null,null,null,null,null,null,null,null,null,null,null,null,null,null,null,null,null,null,null,null,null,"社会保険労務士記載欄"]
[]
[null,null,null,null,null,null,null,null,null,null,null,null,null,null,{"$f":"'入力フォーム '!Q11&\"\"","v":""},null,null,null,null,null,null,null,null,null,null,null,null,null,null,null,null,null,null,null,null,null,null,null,null,null,null,null,null,null,null,null,null,null,null,null,null,null,null,null,null,null,null,null,null,null,null,null,null,null,null,null,null,null,null,null,null,null,null,null,null,null,null,null,null,null,null,null,null,null,null,null,null,null,null,null,null,null,null,null,null,null,null,null,null,null,null,null,null,null,null,null,null,null,null,null,null,null,null,null,null,null,null,null,null,null,null,null,null,null,null,null,null,null,null,null,null,null,null,{"$f":"O42","v":""}]
[]
[null,null,null,null,null,null,null,"事業主\n氏　名",null,null,null,null,null,null,null,null,null,null,null,null,null,null,null,null,null,null,null,null,null,null,null,null,null,null,null,null,null,null,null,null,null,null,null,null,null,null,null,null,null,null,null,null,null,null,null,null,null,null,null,null,null,null,null,null,null,null,null,null,null,null,null,null,null,null,null,null,null,null,null,null,null,null,null,null,null,null,null,null,null,null,null,null,null,null,null,null,null,null,null,null,null,null,null,null,null,null,null,null,null,null,null,null,null,null,null,null,null,null,null,null,null,null,null,null,null,null,"事業主\n氏　名"]
[null,null,null,null,null,null,null,null,null,null,null,null,null,null,null,null,null,null,null,null,null,null,null,null,null,null,null,null,null,null,null,null,null,null,null,null,null,null,null,null,null,null,null,null,null,null,null,null,null,null,null,null,null,null,null,null,null,null,null,null,null,null,"　　　　　氏　　　名　　　等",null,null,null,null,null,null,null,null,null,null,null,null,null,null,null,null,null,null,null,null,null,null,null,null,null,null,null,null,null,null,null,null,null,null,null,null,null,null,null,null,null,null,null,null,null,null,null,null,null,null,null,null,null,null,null,null,null,null,null,null,null,null,null,null,null,null,null,null,null,null,null,null,null,null,null,null,null,null,null,null,null,null,null,null,null,null,null,null,null,null,null,null,null,null,null,null,null,null,null,null,null,null,null,null,null,null,null,null,null,null,null,null,null,null,null,null,null,null,"　　　　　氏　　　名　　　等"]
[]
[]
[null,null,null,null,null,null,null,null,null,null,null,null,null,null,null,null,null,null,null,null,null,null,null,null,null,null,null,null,null,null,null,null,null,null,null,null,null,null,null,null,null,null,null,null,null,null,null,null,null,null,null,null,null,null,null,null,null,null,null,null,null,null,{"$f":"'入力フォーム '!K38&\"\"","v":""},null,null,null,null,null,null,null,null,null,null,null,null,null,null,null,null,null,null,null,null,null,null,null,null,null,null,null,null,null,null,null,null,null,null,null,null,null,null,null,null,null,null,null,null,null,null,null,null,null,null,null,null,null,null,null,null,null,null,null,null,null,null,null,null,null,null,null,null,null,null,null,null,null,null,null,null,null,null,null,null,null,null,null,null,null,null,null,null,null,null,null,null,null,null,null,null,null,null,null,null,null,null,null,null,null,null,null,null,null,null,null,null,null,null,null,null,null,null,{"$f":"BK48","v":""}]
[]
[]
[null,null,null,null,null,null,null,"電話番号",null,null,null,null,null,null,null,null,null,null,null,null,null,null,null,null,null,null,null,null,null,null,null,null,null,null,null,null,null,null,null,null,null,null,null,null,null,null,null,null,null,null,null,null,null,null,null,null,null,null,null,null,null,null,null,null,null,null,null,null,null,null,null,null,null,null,null,null,null,null,null,null,null,null,null,null,null,null,null,null,null,null,null,null,null,null,null,null,null,null,null,null,null,null,null,null,null,null,null,null,null,null,null,null,null,null,null,null,null,null,null,null,null,null,null,null,null,null,"電話番号"]
[null,null,null,null,null,null,null,null,null,null,null,null,null,null,null,null,null,{"$f":"'入力フォーム '!Q12&\"\"","v":""},null,null,null,null,null,null,"(",null,{"$f":"'入力フォーム '!X12&\"\"","v":""},null,null,null,null,null,null,null,null,null,")",null,{"$f":"'入力フォーム '!AF12&\"\"","v":""},null,null,null,null,null,null,null,null,null,null,null,null,null,null,null,null,null,null,null,null,null,null,null,null,null,null,null,null,null,null,null,null,null,null,null,null,null,null,null,null,null,null,null,null,null,null,null,null,null,null,null,null,null,null,null,null,null,null,null,null,null,null,null,null,null,null,null,null,null,null,null,null,null,null,null,null,null,null,null,null,null,null,null,null,null,null,null,null,null,null,null,null,null,null,null,null,null,{"$f":"R52","v":""},null,null,null,null,null,null,"(",null,{"$f":"AA52","v":""},null,null,null,null,null,null,null,null,null,")",null,{"$f":"AM52","v":""}]
[]
[]
[]
[null,null,null,"新規申出の場合は共通記載欄に必要項目を記入してください。",null,null,null,null,null,null,null,null,null,null,null,null,null,null,null,null,null,null,null,null,null,null,null,null,null,null,null,null,null,null,null,null,null,null,null,null,null,null,null,null,null,null,null,null,null,null,null,null,null,null,null,null,null,null,null,null,null,null,null,null,null,null,null,null,null,null,null,null,null,null,null,null,null,null,null,null,null,null,null,null,null,null,null,null,null,null,null,null,null,null,null,null,null,null,null,null,null,null,null,null,null,null,null,null,null,null,null,null,null,null,null,null,null,null,null,null,null,null,"新規申出の場合は共通記載欄に必要項目を記入してください。"]
[]
[]
[null,null,null,"変更・終了の場合は、共通記載欄に産前産後休業取得時に提出いただいた内容を記入のうえ、A.変更・B.終了の必要項目を記入してください。",null,null,null,null,null,null,null,null,null,null,null,null,null,null,null,null,null,null,null,null,null,null,null,null,null,null,null,null,null,null,null,null,null,null,null,null,null,null,null,null,null,null,null,null,null,null,null,null,null,null,null,null,null,null,null,null,null,null,null,null,null,null,null,null,null,null,null,null,null,null,null,null,null,null,null,null,null,null,null,null,null,null,null,null,null,null,null,null,null,null,null,null,null,null,null,null,null,null,null,null,null,null,null,null,null,null,null,null,null,null,null,null,null,null,null,null,null,null,"変更・終了の場合は、共通記載欄に産前産後休業取得時に提出いただいた内容を記入のうえ、A.変更・B.終了の必要項目を記入してください。"]
[]
[]
[null,null,null,null,null,null,null,"①",null,null,null,null,null,null,null,null,{"$f":"'入力フォーム '!Q14&\"\"","v":""},null,null,null,null,null,null,null,null,null,null,null,null,null,null,null,null,null,null,"②",null,null,null,null,null,null,null,null,null,null,null,null,null,null,null,null,null,null,null,null,null,null,null,null,null,null,null,null,null,null,null,null,null,null,null,null,null,null,null,null,null,null,null,null,null,null,null,null,null,null,null,null,null,null,null,null,null,null,null,null,null,null,null,null,null,null,null,null,null,null,null,null,null,null,null,null,null,null,null,null,null,null,null,null,null,null,null,null,null,null,"①",null,null,null,null,null,null,null,null,{"$f":"Q62","v":""},null,null,null,null,null,null,null,null,null,null,null,null,null,null,null,null,null,null,"②",null,null,null,null,null,null,null,null,null,null,null,{"$f":"'入力フォーム '!Q15&\"\"","v":""},null,null,null,null,{"$f":"'入力フォーム '!S15&\"\"","v":""},null,null,null,null,{"$f":"'入力フォーム '!U15&\"\"","v":""},null,null,null,null,{"$f":"'入力フォーム '!W15&\"\"","v":""},null,null,null,null,{"$f":"'入力フォーム '!Y15&\"\"","v":""},null,null,null,null,{"$f":"'入力フォーム '!AA15&\"\"","v":""},null,null,null,null,{"$f":"'入力フォーム '!AC15&\"\"","v":""},null,null,null,null,{"$f":"'入力フォーム '!AE15&\"\"","v":""},null,null,null,null,{"$f":"'入力フォーム '!AG15&\"\"","v":""},null,null,null,null,{"$f":"'入力フォーム '!AI15&\"\"","v":""},null,null,null,null,{"$f":"'入力フォーム '!AK15&\"\"","v":""},null,null,null,null,{"$f":"'入力フォーム '!AM15&\"\"","v":""}]
[]
[null,null,null,null,null,null,null,"被保険者",null,null,null,null,null,null,null,null,null,null,null,null,null,null,null,null,null,null,null,null,null,null,null,null,null,null,null,"個人番号",null,null,null,null,null,null,null,null,null,null,null,null,null,null,null,null,null,null,null,null,null,null,null,null,null,null,null,null,null,null,null,null,null,null,null,null,null,null,null,null,null,null,null,null,null,null,null,null,null,null,null,null,null,null,null,null,null,null,null,null,null,null,null,null,null,null,null,null,null,null,null,null,null,null,null,null,null,null,null,null,null,null,null,null,null,null,null,null,null,null,"被保険者",null,null,null,null,null,null,null,null,null,null,null,null,null,null,null,null,null,null,null,null,null,null,null,null,null,null,null,"個人番号"]
[]
[]
[]
[null,null,null,null,null,null,null,"整理番号",null,null,null,null,null,null,null,null,null,null,null,null,null,null,null,null,null,null,null,null,null,null,null,null,null,null,null,"[基礎年金番号]",null,null,null,null,null,null,null,null,null,null,null,null,null,null,null,null,null,null,null,null,null,null,null,null,null,null,null,null,null,null,null,null,null,null,null,null,null,null,null,null,null,null,null,null,null,null,null,null,null,null,null,null,null,null,null,null,null,null,null,null,null,null,null,null,null,null,null,null,null,null,null,null,null,null,null,null,null,null,null,null,null,null,null,null,null,null,null,null,null,null,"整理番号",null,null,null,null,null,null,null,null,null,null,null,null,null,null,null,null,null,null,null,null,null,null,null,null,null,null,null,"[基礎年金番号]"]
[]
[]
[null,null,null,null,null,null,null,"③",null,null,null,null,null,null,null,null,null,null,null,null,null,{"$f":"'入力フォーム '!T16&\"\"","v":""},null,null,null,null,null,null,null,null,null,null,null,null,null,{"$f":"'入力フォーム '!AI16&\"\"","v":""},null,null,null,null,null,null,null,null,null,null,null,null,null,null,null,null,null,null,"④",null,null,null,null,null,null,null,null,null,null,null,null,null,null,null,null,null,null,{"$f":"IF('入力フォーム '!Q18=\"5. 昭和\",\"○\",\"\")","v":""},null,null,null,null,null,null,null,null,null,null,null,null,null,"年",null,null,null,null,null,null,null,"月",null,null,null,null,null,null,null,"日",null,null,null,null,null,null,null,null,null,null,null,null,null,null,null,null,null,null,null,null,null,null,"③",null,null,null,null,null,null,null,null,null,null,null,null,null,{"$f":"V71","v":""},null,null,null,null,null,null,null,null,null,null,null,null,null,{"$f":"AJ71","v":""},null,null,null,null,null,null,null,null,null,null,null,null,null,null,null,null,null,null,"④",null,null,null,null,null,null,null,null,null,null,null,null,null,null,null,null,null,null,{"$f":"BV71","v":""},null,null,null,null,null,null,null,null,null,null,null,null,null,"年",null,null,null,null,null,null,null,"月",null,null,null,null,null,null,null,"日"]
[]
[null,null,null,null,null,null,null,"被保険者",null,null,null,null,null,null,null,null," （氏）",null,null,null,null,null,null,null,null,null,null,null,null,null,null,null,null,null,null,"（名）",null,null,null,null,null,null,null,null,null,null,null,null,null,null,null,null,null,null,"被保険者",null,null,null,null,null,null,null,null,null,null,null,null,null,null,null,null,null,null,null,null,null,null,null,null,null,null,null,null,{"$f":"'入力フォーム '!W18&\"\"","v":""},null,null,null,{"$f":"'入力フォーム '!Z18&\"\"","v":""},null,null,null,{"$f":"'入力フォーム '!AE18&\"\"","v":""},null,null,null,{"$f":"'入力フォーム '!AH18&\"\"","v":""},null,null,null,{"$f":"'入力フォーム '!AM18&\"\"","v":""},null,null,null,{"$f":"'入力フォーム '!AP18&\"\"","v":""},null,null,null,null,null,null,null,null,null,null,null,null,null,null,null,null,null,null,null,null,null,null,"被保険者",null,null,null,null,null,null,null,null," （氏）",null,null,null,null,null,null,null,null,null,null,null,null,null,null,null,null,null,null,"（名）",null,null,null,null,null,null,null,null,null,null,null,null,null,null,null,null,null,null,"被保険者",null,null,null,null,null,null,null,null,null,null,null,null,null,null,null,null,null,null,null,null,null,null,null,null,null,null,null,null,{"$f":"CF73","v":""},null,null,null,{"$f":"CJ73","v":""},null,null,null,{"$f":"CN73","v":""},null,null,null,{"$f":"CR73","v":""},null,null,null,{"$f":"CV73","v":""},null,null,null,{"$f":"CZ73","v":""}]
[null,null,null,null,null,null,null,null,null,null,null,null,null,null,null,null,null,null,null,null,null,null,null,null,null,null,null,null,null,null,null,null,null,null,null,null,null,null,null,null,null,null,null,null,null,null,null,null,null,null,null,null,null,null,null,null,null,null,null,null,null,null,null,null,null,null,null,null,null,null,null,null,null,{"$f":"IF('入力フォーム '!Q18=\"7. 平成\",\"○\",\"\")","v":""},null,null,null,null,null,null,null,null,null,null,null,null,null,null,null,null,null,null,null,null,null,null,null,null,null,null,null,null,null,null,null,null,null,null,null,null,null,null,null,null,null,null,null,null,null,null,null,null,null,null,null,null,null,null,null,null,null,null,null,null,null,null,null,null,null,null,null,null,null,null,null,null,null,null,null,null,null,null,null,null,null,null,null,null,null,null,null,null,null,null,null,null,null,null,null,null,null,null,null,null,null,null,null,null,null,null,null,null,null,null,null,null,null,null,null,null,null,null,{"$f":"BV74","v":""}]
[null,null,null,null,null,null,null,null,null,null,null,null,null,null,null,null,{"$f":"'入力フォーム '!T17&\"\"","v":""},null,null,null,null,null,null,null,null,null,null,null,null,null,null,null,null,null,null,{"$f":"'入力フォーム '!AI17&\"\"","v":""},null,null,null,null,null,null,null,null,null,null,null,null,null,null,null,null,null,null,null,null,null,null,null,null,null,null,null,null,null,null,null,null,null,null,null,null,null,null,null,null,null,null,null,null,null,null,null,null,null,null,null,null,null,null,null,null,null,null,null,null,null,null,null,null,null,null,null,null,null,null,null,null,null,null,null,null,null,null,null,null,null,null,null,null,null,null,null,null,null,null,null,null,null,null,null,null,null,null,null,{"$f":"Q75","v":""},null,null,null,null,null,null,null,null,null,null,null,null,null,null,null,null,null,null,{"$f":"AJ75","v":""}]
[null,null,null,null,null,null,null,"氏　　　名",null,null,null,null,null,null,null,null,null,null,null,null,null,null,null,null,null,null,null,null,null,null,null,null,null,null,null,null,null,null,null,null,null,null,null,null,null,null,null,null,null,null,null,null,null,null,"生年月日",null,null,null,null,null,null,null,null,null,null,null,null,null,null,null,null,null,null,null,null,null,null,null,null,null,null,null,null,null,null,null,null,null,null,null,null,null,null,null,null,null,null,null,null,null,null,null,null,null,null,null,null,null,null,null,null,null,null,null,null,null,null,null,null,null,null,null,null,null,null,null,"氏　　　名",null,null,null,null,null,null,null,null,null,null,null,null,null,null,null,null,null,null,null,null,null,null,null,null,null,null,null,null,null,null,null,null,null,null,null,null,null,null,null,null,null,null,null,null,null,null,"生年月日"]
[null,null,null,null,null,null,null,null,null,null,null,null,null,null,null,null,null,null,null,null,null,null,null,null,null,null,null,null,null,null,null,null,null,null,null,null,null,null,null,null,null,null,null,null,null,null,null,null,null,null,null,null,null,null,null,null,null,null,null,null,null,null,null,null,null,null,null,null,null,null,null,null,null,{"$f":"IF('入力フォーム '!Q18=\"9. 令和\",\"○\",\"\")","v":""},null,null,null,null,null,null,null,null,null,null,null,null,null,null,null,null,null,null,null,null,null,null,null,null,null,null,null,null,null,null,null,null,null,null,null,null,null,null,null,null,null,null,null,null,null,null,null,null,null,null,null,null,null,null,null,null,null,null,null,null,null,null,null,null,null,null,null,null,null,null,null,null,null,null,null,null,null,null,null,null,null,null,null,null,null,null,null,null,null,null,null,null,null,null,null,null,null,null,null,null,null,null,null,null,null,null,null,null,null,null,null,null,null,null,null,null,null,null,{"$f":"BV77","v":""}]
[]
[]
[null,null,null,null,null,null,null,"⑤",null,null,null,null,null,null,null,null,"9.令和",null,null,null,null,null,null,null,null,null,null,null,null,null,null,null,null,null,"年",null,null,null,null,null,null,null,"月",null,null,null,null,null,null,null,"日",null,null,null,"⑥　　　　　",null,null,null,null,null,null,null,null,null,null,null,null,null,null,null,null,null,null,{"$f":"IF('入力フォーム '!Q20=\"0.　単胎\",\"○\",\"\")","v":""},null,null,null,null,null,null,null,{"$f":"IF('入力フォーム '!Q20=\"1.　多胎\",\"○\",\"\")","v":""},null,null,null,null,null,null,null,"※出産予定の子の人数が",null,null,null,null,null,null,null,null,null,null,null,null,null,null,null,null,null,null,null,null,null,null,null,null,null,null,null,null,null,null,null,null,null,null,null,null,"⑤",null,null,null,null,null,null,null,null,"9.令和",null,null,null,null,null,null,null,null,null,null,null,null,null,null,null,null,null,"年",null,null,null,null,null,null,null,"月",null,null,null,null,null,null,null,"日",null,null,null,"⑥　　　　　",null,null,null,null,null,null,null,null,null,null,null,null,null,null,null,null,null,null,{"$f":"BV80","v":""},null,null,null,null,null,null,null,{"$f":"CD80","v":""},null,null,null,null,null,null,null,"※出産予定の子の人数が"]
[]
[null,null,null,null,null,null,null,"出産予定",null,null,null,null,null,null,null,null,null,null,null,null,null,null,null,null,null,null,null,null,null,null,{"$f":"'入力フォーム '!W19&\"\"","v":""},null,null,null,{"$f":"'入力フォーム '!Z19&\"\"","v":""},null,null,null,{"$f":"'入力フォーム '!AE19&\"\"","v":""},null,null,null,{"$f":"'入力フォーム '!AH19&\"\"","v":""},null,null,null,{"$f":"'入力フォーム '!AM19&\"\"","v":""},null,null,null,{"$f":"'入力フォーム '!AP19&\"\"","v":""},null,null,null,"出 産 種 別",null,null,null,null,null,null,null,null,null,null,null,null,null,null,null,null,null,null,null,null,null,null,null,null,null,null,null,null,null,null,null,null,null,null,null,null,null,null,null,null,null,null,null,null,null,null,null,null,null,null,null,null,null,null,null,null,null,null,null,null,null,null,null,null,null,null,null,null,null,null,null,"出産予定",null,null,null,null,null,null,null,null,null,null,null,null,null,null,null,null,null,null,null,null,null,null,{"$f":"AE82","v":""},null,null,null,{"$f":"AI82","v":""},null,null,null,{"$f":"AM82","v":""},null,null,null,{"$f":"AQ82","v":""},null,null,null,{"$f":"AU82","v":""},null,null,null,{"$f":"AY82","v":""},null,null,null,"出 産 種 別"]
[null,null,null,null,null,null,null,null,null,null,null,null,null,null,null,null,null,null,null,null,null,null,null,null,null,null,null,null,null,null,null,null,null,null,null,null,null,null,null,null,null,null,null,null,null,null,null,null,null,null,null,null,null,null,null,null,null,null,null,null,null,null,null,null,null,null,null,null,null,null,null,null,null,null,null,null,null,null,null,null,null,null,null,null,null,null,null,null,null,"　　2人（双子）以上の場合に",null,null,null,null,null,null,null,null,null,null,null,null,null,null,null,null,null,null,null,null,null,null,null,null,null,null,null,null,null,null,null,null,null,null,null,null,null,null,null,null,null,null,null,null,null,null,null,null,null,null,null,null,null,null,null,null,null,null,null,null,null,null,null,null,null,null,null,null,null,null,null,null,null,null,null,null,null,null,null,null,null,null,null,null,null,null,null,null,null,null,null,null,null,null,null,null,null,null,null,null,null,null,null,null,null,null,null,null,null,null,null,null,null,null,null,null,null,null,"　　2人（双子）以上の場合に"]
[]
[null,null,null,null,null,null,null,"年 月 日",null,null,null,null,null,null,null,null,null,null,null,null,null,null,null,null,null,null,null,null,null,null,null,null,null,null,null,null,null,null,null,null,null,null,null,null,null,null,null,null,null,null,null,null,null,null,null,null,null,null,null,null,null,null,null,null,null,null,null,null,null,null,null,null,null,null,null,null,null,null,null,null,null,null,null,null,null,null,null,null,null,null,null,null,null,null,null,null,null,null,null,null,null,null,null,null,null,null,null,null,null,null,null,null,null,null,null,null,null,null,null,null,null,null,null,null,null,null,"年 月 日"]
[null,null,null,null,null,null,null,null,null,null,null,null,null,null,null,null,null,null,null,null,null,null,null,null,null,null,null,null,null,null,null,null,null,null,null,null,null,null,null,null,null,null,null,null,null,null,null,null,null,null,null,null,null,null,null,null,null,null,null,null,null,null,null,null,null,null,null,null,null,null,null,null,null,null,null,null,null,null,null,null,null,null,null,null,null,null,null,null,null,"　　「1.多胎」を〇で囲んでください。",null,null,null,null,null,null,null,null,null,null,null,null,null,null,null,null,null,null,null,null,null,null,null,null,null,null,null,null,null,null,null,null,null,null,null,null,null,null,null,null,null,null,null,null,null,null,null,null,null,null,null,null,null,null,null,null,null,null,null,null,null,null,null,null,null,null,null,null,null,null,null,null,null,null,null,null,null,null,null,null,null,null,null,null,null,null,null,null,null,null,null,null,null,null,null,null,null,null,null,null,null,null,null,null,null,null,null,null,null,null,null,null,null,null,null,null,null,null,"　　「1.多胎」を〇で囲んでください。"]
[]
[]
[null,null,null,null,null,null,null,"⑦",null,null,null,null,null,null,null,null,"9.令和",null,null,null,null,null,null,null,null,null,null,null,null,null,null,null,null,null,"年",null,null,null,null,null,null,null,"月",null,null,null,null,null,null,null,"日",null,null,null,"⑧",null,null,null,null,null,null,null,null,null,null,null,null,null,null,null,null,null,null,"9.令和",null,null,null,null,null,null,null,null,null,null,null,null,null,"年",null,null,null,null,null,null,null,"月",null,null,null,null,null,null,null,"日",null,null,null,null,null,null,null,null,null,null,null,null,null,null,null,null,null,null,null,null,null,null,"⑦",null,null,null,null,null,null,null,null,"9.令和",null,null,null,null,null,null,null,null,null,null,null,null,null,null,null,null,null,"年",null,null,null,null,null,null,null,"月",null,null,null,null,null,null,null,"日",null,null,null,"⑧",null,null,null,null,null,null,null,null,null,null,null,null,null,null,null,null,null,null,"9.令和",null,null,null,null,null,null,null,null,null,null,null,null,null,"年",null,null,null,null,null,null,null,"月",null,null,null,null,null,null,null,"日"]
[]
[null,null,null,null,null,null,null,"産前産後休業",null,null,null,null,null,null,null,null,null,null,null,null,null,null,null,null,null,null,null,null,null,null,{"$f":"'入力フォーム '!W21&\"\"","v":""},null,null,null,{"$f":"'入力フォーム '!Z21&\"\"","v":""},null,null,null,{"$f":"'入力フォーム '!AE21&\"\"","v":""},null,null,null,{"$f":"'入力フォーム '!AH21&\"\"","v":""},null,null,null,{"$f":"'入力フォーム '!AM21&\"\"","v":""},null,null,null,{"$f":"'入力フォーム '!AP21&\"\"","v":""},null,null,null,"産前産後休業",null,null,null,null,null,null,null,null,null,null,null,null,null,null,null,null,null,null,null,null,null,null,null,null,null,null,null,null,{"$f":"'入力フォーム '!W22&\"\"","v":""},null,null,null,{"$f":"'入力フォーム '!Z22&\"\"","v":""},null,null,null,{"$f":"'入力フォーム '!AE22&\"\"","v":""},null,null,null,{"$f":"'入力フォーム '!AH22&\"\"","v":""},null,null,null,{"$f":"'入力フォーム '!AM22&\"\"","v":""},null,null,null,{"$f":"'入力フォーム '!AP22&\"\"","v":""},null,null,null,null,null,null,null,null,null,null,null,null,null,null,null,null,null,null,null,null,null,null,"産前産後休業",null,null,null,null,null,null,null,null,null,null,null,null,null,null,null,null,null,null,null,null,null,null,{"$f":"AE91","v":""},null,null,null,{"$f":"AI91","v":""},null,null,null,{"$f":"AM91","v":""},null,null,null,{"$f":"AQ91","v":""},null,null,null,{"$f":"AU91","v":""},null,null,null,{"$f":"AY91","v":""},null,null,null,"産前産後休業",null,null,null,null,null,null,null,null,null,null,null,null,null,null,null,null,null,null,null,null,null,null,null,null,null,null,null,null,{"$f":"CF91","v":""},null,null,null,{"$f":"CJ91","v":""},null,null,null,{"$f":"CN91","v":""},null,null,null,{"$f":"CR91","v":""},null,null,null,{"$f":"CV91","v":""},null,null,null,{"$f":"CZ91","v":""}]
[]
[]
[null,null,null,null,null,null,null,"開始年月日",null,null,null,null,null,null,null,null,null,null,null,null,null,null,null,null,null,null,null,null,null,null,null,null,null,null,null,null,null,null,null,null,null,null,null,null,null,null,null,null,null,null,null,null,null,null,"終了予定年月日",null,null,null,null,null,null,null,null,null,null,null,null,null,null,null,null,null,null,null,null,null,null,null,null,null,null,null,null,null,null,null,null,null,null,null,null,null,null,null,null,null,null,null,null,null,null,null,null,null,null,null,null,null,null,null,null,null,null,null,null,null,null,null,null,null,null,null,null,null,null,null,"開始年月日",null,null,null,null,null,null,null,null,null,null,null,null,null,null,null,null,null,null,null,null,null,null,null,null,null,null,null,null,null,null,null,null,null,null,null,null,null,null,null,null,null,null,null,null,null,null,"終了予定年月日"]
[]
[]
[]
[null,null,null,null,null,null,null,"　　以下の⑨～⑩は、この申出書を出産後に提出する場合のみ記入してください。",null,null,null,null,null,null,null,null,null,null,null,null,null,null,null,null,null,null,null,null,null,null,null,null,null,null,null,null,null,null,null,null,null,null,null,null,null,null,null,null,null,null,null,null,null,null,null,null,null,null,null,null,null,null,null,null,null,null,null,null,null,null,null,null,null,null,null,null,null,null,null,null,null,null,null,null,null,null,null,null,null,null,null,null,null,null,null,null,null,null,null,null,null,null,null,null,null,null,null,null,null,null,null,null,null,null,null,null,null,null,null,null,null,null,null,null,null,null,"　　以下の⑨～⑩は、この申出書を出産後に提出する場合のみ記入してください。"]
[]
[]
[]
[]
[]
[]
[]
[]
[null,null,null,null,null,null,null,"⑨",null,null,null,null,null,null,null,null,"9.令和",null,null,null,null,null,null,null,null,null,null,null,null,null,null,null,null,null,"年",null,null,null,null,null,null,null,"月",null,null,null,null,null,null,null,"日",null,null,null,null,null,null,null,null,null,null,null,null,null,null,null,null,null,null,null,null,null,null,null,null,null,null,null,null,null,null,null,null,null,null,null,null,null,null,null,null,null,null,null,null,null,null,null,null,null,null,null,null,null,null,null,null,null,null,null,null,null,null,null,null,null,null,null,null,null,null,null,null,null,null,null,"⑨",null,null,null,null,null,null,null,null,"9.令和",null,null,null,null,null,null,null,null,null,null,null,null,null,null,null,null,null,"年",null,null,null,null,null,null,null,"月",null,null,null,null,null,null,null,"日"]
[]
[null,null,null,null,null,null,null,"出産年月日",null,null,null,null,null,null,null,null,null,null,null,null,null,null,null,null,null,null,null,null,null,null,{"$f":"'入力フォーム '!$W$26&\"\"","v":""},null,null,null,{"$f":"'入力フォーム '!$Z$26&\"\"","v":""},null,null,null,{"$f":"'入力フォーム '!$AE$26&\"\"","v":""},null,null,null,{"$f":"'入力フォーム '!$AH$26&\"\"","v":""},null,null,null,{"$f":"'入力フォーム '!$AM$26&\"\"","v":""},null,null,null,{"$f":"'入力フォーム '!$AP$26&\"\"","v":""},null,null,null,null,null,null,null,null,null,null,null,null,null,null,null,null,null,null,null,null,null,null,null,null,null,null,null,null,null,null,null,null,null,null,null,null,null,null,null,null,null,null,null,null,null,null,null,null,null,null,null,null,null,null,null,null,null,null,null,null,null,null,null,null,null,null,null,null,null,null,null,null,null,null,null,"出産年月日",null,null,null,null,null,null,null,null,null,null,null,null,null,null,null,null,null,null,null,null,null,null,{"$f":"'入力フォーム '!$W$26&\"\"","v":""},null,null,null,{"$f":"'入力フォーム '!$Z$26&\"\"","v":""},null,null,null,{"$f":"'入力フォーム '!$AE$26&\"\"","v":""},null,null,null,{"$f":"'入力フォーム '!$AH$26&\"\"","v":""},null,null,null,{"$f":"'入力フォーム '!$AM$26&\"\"","v":""},null,null,null,{"$f":"'入力フォーム '!$AP$26&\"\"","v":""}]
[]
[]
[]
[]
[]
[]
[null,null,null,null,null,null,null,"⑩",null,null,null,null,null,null,null,null,{"$f":"'入力フォーム '!Q27&\"\"","v":""},null,null,null,null,null,null,null,null,null,null,null,null,null,null,null,null,null,null,null,null,null,null,null,null,null,null,null,null,null,null,null,null,null,null,null,null,null,null,null,null,null,null,null,null,null,null,null,null,null,null,null,null,null,null,null,null,null,null,null,null,null,null,null,null,null,null,null,null,null,null,null,null,null,null,null,null,null,null,null,null,null,null,null,null,null,null,null,null,null,null,null,null,null,null,null,null,null,null,null,null,null,null,null,null,null,null,null,null,null,"⑩",null,null,null,null,null,null,null,null,{"$f":"Q116","v":""}]
[]
[null,null,null,null,null,null,null,"備考",null,null,null,null,null,null,null,null,null,null,null,null,null,null,null,null,null,null,null,null,null,null,null,null,null,null,null,null,null,null,null,null,null,null,null,null,null,null,null,null,null,null,null,null,null,null,null,null,null,null,null,null,null,null,null,null,null,null,null,null,null,null,null,null,null,null,null,null,null,null,null,null,null,null,null,null,null,null,null,null,null,null,null,null,null,null,null,null,null,null,null,null,null,null,null,null,null,null,null,null,null,null,null,null,null,null,null,null,null,null,null,null,null,null,null,null,null,null,"備考"]
[]
[]
[]
[]
[]
[]
[]
[null,null,"出産（予定）日・産前産後休業終了（予定）日を変更する場合　※必ず共通記載欄も記入してください。",null,null,null,null,null,null,null,null,null,null,null,null,null,null,null,null,null,null,null,null,null,null,null,null,null,null,null,null,null,null,null,null,null,null,null,null,null,null,null,null,null,null,null,null,null,null,null,null,null,null,null,null,null,null,null,null,null,null,null,null,null,null,null,null,null,null,null,null,null,null,null,null,null,null,null,null,null,null,null,null,null,null,null,null,null,null,null,null,null,null,null,null,null,null,null,null,null,null,null,null,null,null,null,null,null,null,null,null,null,null,null,null,null,null,null,null,null,null,"出産（予定）日・産前産後休業終了（予定）日を変更する場合　※必ず共通記載欄も記入してください。"]
[]
[]
[]
[null,null,null,null,null,null,null,"⑫",null,null,null,null,null,null,null,null,"9.令和",null,null,null,null,null,null,null,null,null,null,null,null,null,null,null,null,null,"年",null,null,null,null,null,null,null,"月",null,null,null,null,null,null,null,"日",null,null,null,"⑬",null,null,null,null,null,null,null,null,null,null,null,null,null,null,null,null,null,null,{"$f":"IF('入力フォーム '!Q30=\"0.　単胎\",\"○\",\"\")","v":""},null,null,null,null,null,null,null,{"$f":"IF('入力フォーム '!Q30=\"1.　多胎\",\"○\",\"\")","v":""},null,null,null,null,null,null,null,"※出産予定の子の人数が",null,null,null,null,null,null,null,null,null,null,null,null,null,null,null,null,null,null,null,null,null,null,null,null,null,null,null,null,null,null,null,null,null,null,null,null,"⑫",null,null,null,null,null,null,null,null,"9.令和",null,null,null,null,null,null,null,null,null,null,null,null,null,null,null,null,null,"年",null,null,null,null,null,null,null,"月",null,null,null,null,null,null,null,"日",null,null,null,"⑬",null,null,null,null,null,null,null,null,null,null,null,null,null,null,null,null,null,null,{"$f":"BV130","v":""},null,null,null,null,null,null,null,{"$f":"CD130","v":""},null,null,null,null,null,null,null,"※出産予定の子の人数が"]
[]
[null,null,null,null,null,null,null,"変更後の",null,null,null,null,null,null,null,null,null,null,null,null,null,null,null,null,null,null,null,null,null,null,{"$f":"'入力フォーム '!W29&\"\"","v":""},null,null,null,{"$f":"'入力フォーム '!Z29&\"\"","v":""},null,null,null,{"$f":"'入力フォーム '!AE29&\"\"","v":""},null,null,null,{"$f":"'入力フォーム '!AH29&\"\"","v":""},null,null,null,{"$f":"'入力フォーム '!AM29&\"\"","v":""},null,null,null,{"$f":"'入力フォーム '!AP29&\"\"","v":""},null,null,null,"変更後の出産種別",null,null,null,null,null,null,null,null,null,null,null,null,null,null,null,null,null,null,null,null,null,null,null,null,null,null,null,null,null,null,null,null,null,null,null,null,null,null,null,null,null,null,null,null,null,null,null,null,null,null,null,null,null,null,null,null,null,null,null,null,null,null,null,null,null,null,null,null,null,null,null,"変更後の",null,null,null,null,null,null,null,null,null,null,null,null,null,null,null,null,null,null,null,null,null,null,{"$f":"AE132","v":""},null,null,null,{"$f":"AI132","v":""},null,null,null,{"$f":"AM132","v":""},null,null,null,{"$f":"AQ132","v":""},null,null,null,{"$f":"AU132","v":""},null,null,null,{"$f":"AY132","v":""},null,null,null,"変更後の出産種別"]
[null,null,null,null,null,null,null,null,null,null,null,null,null,null,null,null,null,null,null,null,null,null,null,null,null,null,null,null,null,null,null,null,null,null,null,null,null,null,null,null,null,null,null,null,null,null,null,null,null,null,null,null,null,null,null,null,null,null,null,null,null,null,null,null,null,null,null,null,null,null,null,null,null,null,null,null,null,null,null,null,null,null,null,null,null,null,null,null,null,"　　2人（双子）以上の場合に",null,null,null,null,null,null,null,null,null,null,null,null,null,null,null,null,null,null,null,null,null,null,null,null,null,null,null,null,null,null,null,null,null,null,null,null,null,null,null,null,null,null,null,null,null,null,null,null,null,null,null,null,null,null,null,null,null,null,null,null,null,null,null,null,null,null,null,null,null,null,null,null,null,null,null,null,null,null,null,null,null,null,null,null,null,null,null,null,null,null,null,null,null,null,null,null,null,null,null,null,null,null,null,null,null,null,null,null,null,null,null,null,null,null,null,null,null,null,"　　2人（双子）以上の場合に"]
[]
[null,null,null,null,null,null,null,"出産(予定）",null,null,null,null,null,null,null,null,null,null,null,null,null,null,null,null,null,null,null,null,null,null,null,null,null,null,null,null,null,null,null,null,null,null,null,null,null,null,null,null,null,null,null,null,null,null,null,null,null,null,null,null,null,null,null,null,null,null,null,null,null,null,null,null,null,null,null,null,null,null,null,null,null,null,null,null,null,null,null,null,null,null,null,null,null,null,null,null,null,null,null,null,null,null,null,null,null,null,null,null,null,null,null,null,null,null,null,null,null,null,null,null,null,null,null,null,null,null,"出産(予定）"]
[null,null,null,null,null,null,null,null,null,null,null,null,null,null,null,null,null,null,null,null,null,null,null,null,null,null,null,null,null,null,null,null,null,null,null,null,null,null,null,null,null,null,null,null,null,null,null,null,null,null,null,null,null,null,null,null,null,null,null,null,null,null,null,null,null,null,null,null,null,null,null,null,null,null,null,null,null,null,null,null,null,null,null,null,null,null,null,null,null,"　　「1.多胎」を〇で囲んでください。",null,null,null,null,null,null,null,null,null,null,null,null,null,null,null,null,null,null,null,null,null,null,null,null,null,null,null,null,null,null,null,null,null,null,null,null,null,null,null,null,null,null,null,null,null,null,null,null,null,null,null,null,null,null,null,null,null,null,null,null,null,null,null,null,null,null,null,null,null,null,null,null,null,null,null,null,null,null,null,null,null,null,null,null,null,null,null,null,null,null,null,null,null,null,null,null,null,null,null,null,null,null,null,null,null,null,null,null,null,null,null,null,null,null,null,null,null,null,"　　「1.多胎」を〇で囲んでください。"]
[null,null,null,null,null,null,null,"年 月 日",null,null,null,null,null,null,null,null,null,null,null,null,null,null,null,null,null,null,null,null,null,null,null,null,null,null,null,null,null,null,null,null,null,null,null,null,null,null,null,null,null,null,null,null,null,null,null,null,null,null,null,null,null,null,null,null,null,null,null,null,null,null,null,null,null,null,null,null,null,null,null,null,null,null,null,null,null,null,null,null,null,null,null,null,null,null,null,null,null,null,null,null,null,null,null,null,null,null,null,null,null,null,null,null,null,null,null,null,null,null,null,null,null,null,null,null,null,null,"年 月 日"]
[]
[null,null,null,null,null,null,null,"⑭",null,null,null,null,null,null,null,null,"9.令和",null,null,null,null,null,null,null,null,null,null,null,null,null,null,null,null,null,"年",null,null,null,null,null,null,null,"月",null,null,null,null,null,null,null,"日",null,null,null,"⑮",null,null,null,null,null,null,null,null,null,null,null,null,null,null,null,null,null,null,"9.令和",null,null,null,null,null,null,null,null,null,null,null,null,null,"年",null,null,null,null,null,null,null,"月",null,null,null,null,null,null,null,"日",null,null,null,null,null,null,null,null,null,null,null,null,null,null,null,null,null,null,null,null,null,null,"⑭",null,null,null,null,null,null,null,null,"9.令和",null,null,null,null,null,null,null,null,null,null,null,null,null,null,null,null,null,"年",null,null,null,null,null,null,null,"月",null,null,null,null,null,null,null,"日",null,null,null,"⑮",null,null,null,null,null,null,null,null,null,null,null,null,null,null,null,null,null,null,"9.令和",null,null,null,null,null,null,null,null,null,null,null,null,null,"年",null,null,null,null,null,null,null,"月",null,null,null,null,null,null,null,"日"]
[]
[null,null,null,null,null,null,null,"産前産後休業",null,null,null,null,null,null,null,null,null,null,null,null,null,null,null,null,null,null,null,null,null,null,{"$f":"'入力フォーム '!W31&\"\"","v":""},null,null,null,{"$f":"'入力フォーム '!Z31&\"\"","v":""},null,null,null,{"$f":"'入力フォーム '!AE31&\"\"","v":""},null,null,null,{"$f":"'入力フォーム '!AH31&\"\"","v":""},null,null,null,{"$f":"'入力フォーム '!AM31&\"\"","v":""},null,null,null,{"$f":"'入力フォーム '!AP31&\"\"","v":""},null,null,null,"産前産後休業",null,null,null,null,null,null,null,null,null,null,null,null,null,null,null,null,null,null,null,null,null,null,null,null,null,null,null,null,{"$f":"'入力フォーム '!W32&\"\"","v":""},null,null,null,{"$f":"'入力フォーム '!Z32&\"\"","v":""},null,null,null,{"$f":"'入力フォーム '!AE32&\"\"","v":""},null,null,null,{"$f":"'入力フォーム '!AH32&\"\"","v":""},null,null,null,{"$f":"'入力フォーム '!AM32&\"\"","v":""},null,null,null,{"$f":"'入力フォーム '!AP32&\"\"","v":""},null,null,null,null,null,null,null,null,null,null,null,null,null,null,null,null,null,null,null,null,null,null,"産前産後休業",null,null,null,null,null,null,null,null,null,null,null,null,null,null,null,null,null,null,null,null,null,null,{"$f":"AE141","v":""},null,null,null,{"$f":"AI141","v":""},null,null,null,{"$f":"AM141","v":""},null,null,null,{"$f":"AQ141","v":""},null,null,null,{"$f":"AU141","v":""},null,null,null,{"$f":"AY141","v":""},null,null,null,"産前産後休業",null,null,null,null,null,null,null,null,null,null,null,null,null,null,null,null,null,null,null,null,null,null,null,null,null,null,null,null,{"$f":"CF141","v":""},null,null,null,{"$f":"CJ141","v":""},null,null,null,{"$f":"CN141","v":""},null,null,null,{"$f":"CR141","v":""},null,null,null,{"$f":"CV141","v":""},null,null,null,{"$f":"CZ141","v":""}]
[]
[]
[null,null,null,null,null,null,null,"開始年月日",null,null,null,null,null,null,null,null,null,null,null,null,null,null,null,null,null,null,null,null,null,null,null,null,null,null,null,null,null,null,null,null,null,null,null,null,null,null,null,null,null,null,null,null,null,null,"終了予定年月日",null,null,null,null,null,null,null,null,null,null,null,null,null,null,null,null,null,null,null,null,null,null,null,null,null,null,null,null,null,null,null,null,null,null,null,null,null,null,null,null,null,null,null,null,null,null,null,null,null,null,null,null,null,null,null,null,null,null,null,null,null,null,null,null,null,null,null,null,null,null,null,"開始年月日",null,null,null,null,null,null,null,null,null,null,null,null,null,null,null,null,null,null,null,null,null,null,null,null,null,null,null,null,null,null,null,null,null,null,null,null,null,null,null,null,null,null,null,null,null,null,"終了予定年月日"]
[]
[]
[]
[]
[null,null,null,null,null,null,null,null,null,null,null,null,null,null,null,null,null,null,null,null,null,null,null,null,null,null,null,null,null,null,null,null,null,null,null,null,null,null,null,null,null,null,null,null,null,null,null,null,null,null,null,null,null,null,null,15,null,null,null,null,null,null,null,null,null,null,null,null,null,null,null,null,null,null,null,null,null,null,null,null,null,null,null,null,null,null,null,null,null,null,null,null,null,null,null,null,null,null,null,null,null,null,null,null,null,null,null,null,null,null,null,null,null,null,null,null,null,null,null,null,null,null,null,null,null,null,null,null,null,null,null,null,null,null,null,null,null,null,null,null,null,null,null,null,null,null,null,null,null,null,null,null,null,null,null,null,null,null,null,null,null,null,null,null,null,null,null,null,null,null,null,null,null,null,15]
[null,null,"予定より早く産前産後休業を終了した場合　※必ず共通記載欄も記入してください。",null,null,null,null,null,null,null,null,null,null,null,null,null,null,null,null,null,null,null,null,null,null,null,null,null,null,null,null,null,null,null,null,null,null,null,null,null,null,null,null,null,null,null,null,null,null,null,null,null,null,null,null,null,null,null,null,null,null,null,null,null,null,null,null,null,null,null,null,null,null,null,null,null,null,null,null,null,null,null,null,null,null,null,null,null,null,null,null,null,null,null,null,null,null,null,null,null,null,null,null,null,null,null,null,null,null,null,null,null,null,null,null,null,null,null,null,null,null,"予定より早く産前産後休業を終了した場合　※必ず共通記載欄も記入してください。"]
[]
[]
[null,null,null,null,null,null,null,null,null,null,null,null,null,null,null,null,null,null,null,null,null,null,null,null,null,null,null,null,null,null,null,null,null,null,null,null,null,null,null,null,null,null,null,null,null,null,null,null,null,null,null,null,null,null,null,19,null,null,null,null,null,null,null,null,null,null,null,null,null,null,null,null,null,null,null,null,null,null,null,null,null,null,null,null,null,null,null,null,null,null,null,null,null,null,null,null,null,null,null,null,null,null,null,null,null,null,null,null,null,null,null,null,null,null,null,null,null,null,null,null,null,null,null,null,null,null,null,null,null,null,null,null,null,null,null,null,null,null,null,null,null,null,null,null,null,null,null,null,null,null,null,null,null,null,null,null,null,null,null,null,null,null,null,null,null,null,null,null,null,null,null,null,null,null,19]
[null,null,null,null,null,null,null,"⑯",null,null,null,null,null,null,null,null,"9.令和",null,null,null,null,null,null,null,null,null,null,null,null,null,null,null,null,null,"年",null,null,null,null,null,null,null,"月",null,null,null,null,null,null,null,"日",null,null,null,null,20,null,null,null,null,null,null,null,null,null,null,null,null,null,null,null,null,null,null,null,null,null,null,null,null,null,null,null,null,null,null,null,null,null,null,null,null,null,null,null,null,null,null,null,null,null,null,null,null,null,null,null,null,null,null,null,null,null,null,null,null,null,null,null,null,null,null,null,null,null,null,"⑯",null,null,null,null,null,null,null,null,"9.令和",null,null,null,null,null,null,null,null,null,null,null,null,null,null,null,null,null,"年",null,null,null,null,null,null,null,"月",null,null,null,null,null,null,null,"日",null,null,null,null,20]
[null,null,null,null,null,null,null,null,null,null,null,null,null,null,null,null,null,null,null,null,null,null,null,null,null,null,null,null,null,null,null,null,null,null,null,null,null,null,null,null,null,null,null,null,null,null,null,null,null,null,null,null,null,null,null,21,null,null,null,null,null,null,null,null,null,null,null,null,null,null,null,null,null,null,null,null,null,null,null,null,null,null,null,null,null,null,null,null,null,null,null,null,null,null,null,null,null,null,null,null,null,null,null,null,null,null,null,null,null,null,null,null,null,null,null,null,null,null,null,null,null,null,null,null,null,null,null,null,null,null,null,null,null,null,null,null,null,null,null,null,null,null,null,null,null,null,null,null,null,null,null,null,null,null,null,null,null,null,null,null,null,null,null,null,null,null,null,null,null,null,null,null,null,null,21]
[null,null,null,null,null,null,null,"産前産後休業終了年月日",null,null,null,null,null,null,null,null,null,null,null,null,null,null,null,null,null,null,null,null,null,null,{"$f":"'入力フォーム '!W34&\"\"","v":""},null,null,null,{"$f":"'入力フォーム '!Z34&\"\"","v":""},null,null,null,{"$f":"'入力フォーム '!AE34&\"\"","v":""},null,null,null,{"$f":"'入力フォーム '!AH34&\"\"","v":""},null,null,null,{"$f":"'入力フォーム '!AM34&\"\"","v":""},null,null,null,{"$f":"'入力フォーム '!AP34&\"\"","v":""},null,null,null,null,22,null,null,null,null,null,null,null,null,null,null,null,null,null,null,null,null,null,null,null,null,null,null,null,null,null,null,null,null,null,null,null,null,null,null,null,null,null,null,null,null,null,null,null,null,null,null,null,null,null,null,null,null,null,null,null,null,null,null,null,null,null,null,null,null,null,null,null,null,null,null,"産前産後休業終了年月日",null,null,null,null,null,null,null,null,null,null,null,null,null,null,null,null,null,null,null,null,null,null,{"$f":"AE156","v":""},null,null,null,{"$f":"AI156","v":""},null,null,null,{"$f":"AM156","v":""},null,null,null,{"$f":"AQ156","v":""},null,null,null,{"$f":"AU156","v":""},null,null,null,{"$f":"AY156","v":""},null,null,null,null,22]
[null,null,null,null,null,null,null,null,null,null,null,null,null,null,null,null,null,null,null,null,null,null,null,null,null,null,null,null,null,null,null,null,null,null,null,null,null,null,null,null,null,null,null,null,null,null,null,null,null,null,null,null,null,null,null,23,null,null,null,null,null,null,null,null,null,null,null,null,null,null,null,null,null,null,null,null,null,null,null,null,null,null,null,null,null,null,null,null,null,null,null,null,null,null,null,null,null,null,null,null,null,null,null,null,null,null,null,null,null,null,null,null,null,null,null,null,null,null,null,null,null,null,null,null,null,null,null,null,null,null,null,null,null,null,null,null,null,null,null,null,null,null,null,null,null,null,null,null,null,null,null,null,null,null,null,null,null,null,null,null,null,null,null,null,null,null,null,null,null,null,null,null,null,null,23]
[null,null,null,null,null,null,null,null,null,null,null,null,null,null,null,null,null,null,null,null,null,null,null,null,null,null,null,null,null,null,null,null,null,null,null,null,null,null,null,null,null,null,null,null,null,null,null,null,null,null,null,null,null,null,null,24,null,null,null,null,null,null,null,null,null,null,null,null,null,null,null,null,null,null,null,null,null,null,null,null,null,null,null,null,null,null,null,null,null,null,null,null,null,null,null,null,null,null,null,null,null,null,null,null,null,null,null,null,null,null,null,null,null,null,null,null,null,null,null,null,null,null,null,null,null,null,null,null,null,null,null,null,null,null,null,null,null,null,null,null,null,null,null,null,null,null,null,null,null,null,null,null,null,null,null,null,null,null,null,null,null,null,null,null,null,null,null,null,null,null,null,null,null,null,24]
[null,null,null,null,null,null,null,null,null,null,null,null,null,null,null,null,null,null,null,null,null,null,null,null,null,null,null,null,null,null,null,null,null,null,null,null,null,null,null,null,null,null,null,null,null,null,null,null,null,null,null,null,null,null,null,25,null,null,null,null,null,null,null,null,null,null,null,null,null,null,null,null,null,null,null,null,null,null,null,null,null,null,null,null,null,null,null,null,null,null,null,null,null,null,null,null,null,null,null,null,null,null,null,null,null,null,null,null,null,null,null,null,null,null,null,null,null,null,null,null,null,null,null,null,null,null,null,null,null,null,null,null,null,null,null,null,null,null,null,null,null,null,null,null,null,null,null,null,null,null,null,null,null,null,null,null,null,null,null,null,null,null,null,null,null,null,null,null,null,null,null,null,null,null,25]
[null,null,null,null,null,null,null,null,null,null,null,null,null,null,null,null,null,null,null,null,null,null,null,null,null,null,null,null,null,null,null,null,null,null,null,null,null,null,null,null,null,null,null,null,null,null,null,null,null,null,null,null,null,null,null,26,null,null,null,null,null,null,null,null,null,null,null,null,null,null,null,null,null,null,null,null,null,null,null,null,null,null,null,null,null,null,null,null,null,null,null,null,null,null,null,null,null,null,null,null,null,null,null,null,null,null,null,null,null,null,null,null,null,null,null,null,null,null,null,null,null,null,null,null,null,null,null,null,null,null,null,null,null,null,null,null,null,null,null,null,null,null,null,null,null,null,null,null,null,null,null,null,null,null,null,null,null,null,null,null,null,null,null,null,null,null,null,null,null,null,null,null,null,null,26]
[null,null,null,null,null,null,null,null,null,null,null,null,null,null,null,null,null,null,null,null,null,null,null,null,null,null,null,null,null,null,null,null,null,null,null,null,null,null,null,null,null,null,null,null,null,null,null,null,null,null,null,null,null,null,null,27,null,null,null,null,null,null,null,null,null,null,null,null,null,null,null,null,null,null,null,null,null,null,null,null,null,null,null,null,null,null,null,null,null,null,null,null,null,null,null,null,null,null,null,null,null,null,null,null,null,null,null,null,null,null,null,null,null,null,null,null,null,null,null,null,null,null,null,null,null,null,null,null,null,null,null,null,null,null,null,null,null,null,null,null,null,null,null,null,null,null,null,null,null,null,null,null,null,null,null,null,null,null,null,null,null,null,null,null,null,null,null,null,null,null,null,null,null,null,27]
[null,null,null,null,null,null,null,null,null,null,null,null,null,null,null,null,null,null,null,null,null,null,null,null,null,null,null,null,null,null,null,null,null,null,null,null,null,null,null,null,null,null,null,null,null,null,null,null,null,null,null,null,null,null,null,28,null,null,null,null,null,null,null,null,null,null,null,null,null,null,null,null,null,null,null,null,null,null,null,null,null,null,null,null,null,null,null,null,null,null,null,null,null,null,null,null,null,null,null,null,null,null,null,null,null,null,null,null,null,null,null,null,null,null,null,null,null,null,null,null,null,null,null,null,null,null,null,null,null,null,null,null,null,null,null,null,null,null,null,null,null,null,null,null,null,null,null,null,null,null,null,null,null,null,null,null,null,null,null,null,null,null,null,null,null,null,null,null,null,null,null,null,null,null,28]
[null,null,null,null,null,null,null,null,null,null,null,null,null,null,null,null,null,null,null,null,null,null,null,null,null,null,null,null,null,null,null,null,null,null,null,null,null,null,null,null,null,null,null,null,null,null,null,null,null,null,null,null,null,null,null,29,null,null,null,null,null,null,null,null,null,null,null,null,null,null,null,null,null,null,null,null,null,null,null,null,null,null,null,null,null,null,null,null,null,null,null,null,null,null,null,null,null,null,null,null,null,null,null,null,null,null,null,null,null,null,null,null,null,null,null,null,null,null,null,null,null,null,null,null,null,null,null,null,null,null,null,null,null,null,null,null,null,null,null,null,null,null,null,null,null,null,null,null,null,null,null,null,null,null,null,null,null,null,null,null,null,null,null,null,null,null,null,null,null,null,null,null,null,null,29]
[]
[]
["○　産前産後休業期間とは、出産日以前42日（多胎妊娠の場合は98日）～出産日後56日の間に、妊娠または出産を理由として労務に従事",null,null,null,null,null,null,null,null,null,null,null,null,null,null,null,null,null,null,null,null,null,null,null,null,null,null,null,null,null,null,null,null,null,null,null,null,null,null,null,null,null,null,null,null,null,null,null,null,null,null,null,null,null,null,null,null,null,null,null,null,null,null,null,null,null,null,null,null,null,null,null,null,null,null,null,null,null,null,null,null,null,null,null,null,null,null,null,null,null,null,null,null,null,null,null,null,null,null,null,null,null,null,null,null,null,null,null,null,null,null,null,null,null,null,null,null,null,null,"○　産前産後休業期間とは、出産日以前42日（多胎妊娠の場合は98日）～出産日後56日の間に、妊娠または出産を理由として労務に従事","○　産前産後休業期間とは、出産日以前42日（多胎妊娠の場合は98日）～出産日後56日の間に、妊娠または出産を理由として労務に従事"]
[]
[]
[]
[]
[]
[]
[]
[" 　　しない期間のことです。",null,null,null,null,null,null,null,null,null,null,null,null,null,null,null,null,null,null,null,null,null,null,null,null,null,null,null,null,null,null,null,null,null,null,null,null,null,null,null,null,null,null,null,null,null,null,null,null,null,null,null,null,null,null,null,null,null,null,null,null,null,null,null,null,null,null,null,null,null,null,null,null,null,null,null,null,null,null,null,null,null,null,null,null,null,null,null,null,null,null,null,null,null,null,null,null,null,null,null,null,null,null,null,null,null,null,null,null,null,null,null,null,null,null,null,null,null,null," 　　しない期間のことです。"," 　　しない期間のことです。"]
[]
[]
[]
[]
[]
[]
[]
[]
[]
["○　この申出書を出産予定日より前に提出された場合で、実際の出産日が予定日と異なった場合は、再度『産前産後休業取得者変更届』",null,null,null,null,null,null,null,null,null,null,null,null,null,null,null,null,null,null,null,null,null,null,null,null,null,null,null,null,null,null,null,null,null,null,null,null,null,null,null,null,null,null,null,null,null,null,null,null,null,null,null,null,null,null,null,null,null,null,null,null,null,null,null,null,null,null,null,null,null,null,null,null,null,null,null,null,null,null,null,null,null,null,null,null,null,null,null,null,null,null,null,null,null,null,null,null,null,null,null,null,null,null,null,null,null,null,null,null,null,null,null,null,null,null,null,null,null,null,"○　この申出書を出産予定日より前に提出された場合で、実際の出産日が予定日と異なった場合は、再度『産前産後休業取得者変更届』","○　この申出書を出産予定日より前に提出された場合で、実際の出産日が予定日と異なった場合は、再度『産前産後休業取得者変更届』"]
[]
[]
[]
[]
["     （当届書の「共通記載欄」と「A.変更」欄に記入）を提出してください。休業期間の基準日である出産年月日がずれることで、開始・終了年",null,null,null,null,null,null,null,null,null,null,null,null,null,null,null,null,null,null,null,null,null,null,null,null,null,null,null,null,null,null,null,null,null,null,null,null,null,null,null,null,null,null,null,null,null,null,null,null,null,null,null,null,null,null,null,null,null,null,null,null,null,null,null,null,null,null,null,null,null,null,null,null,null,null,null,null,null,null,null,null,null,null,null,null,null,null,null,null,null,null,null,null,null,null,null,null,null,null,null,null,null,null,null,null,null,null,null,null,null,null,null,null,null,null,null,null,null,null,"     （当届書の「共通記載欄」と「A.変更」欄に記入）を提出してください。休業期間の基準日である出産年月日がずれることで、開始・終了年","     （当届書の「共通記載欄」と「A.変更」欄に記入）を提出してください。休業期間の基準日である出産年月日がずれることで、開始・終了年"]
[]
[]
[]
[]
["     月日が変更になります。",null,null,null,null,null,null,null,null,null,null,null,null,null,null,null,null,null,null,null,null,null,null,null,null,null,null,null,null,null,null,null,null,null,null,null,null,null,null,null,null,null,null,null,null,null,null,null,null,null,null,null,null,null,null,null,null,null,null,null,null,null,null,null,null,null,null,null,null,null,null,null,null,null,null,null,null,null,null,null,null,null,null,null,null,null,null,null,null,null,null,null,null,null,null,null,null,null,null,null,null,null,null,null,null,null,null,null,null,null,null,null,null,null,null,null,null,null,null,"     月日が変更になります。","     月日が変更になります。"]
[]
[]
[]
[]
[]
[]
[]
[]
[]
["○　産前産後休業取得申出時に記載した終了予定年月日より早く産休を終了した場合は、『産前産後休業終了届』（当届書の「共通記載",null,null,null,null,null,null,null,null,null,null,null,null,null,null,null,null,null,null,null,null,null,null,null,null,null,null,null,null,null,null,null,null,null,null,null,null,null,null,null,null,null,null,null,null,null,null,null,null,null,null,null,null,null,null,null,null,null,null,null,null,null,null,null,null,null,null,null,null,null,null,null,null,null,null,null,null,null,null,null,null,null,null,null,null,null,null,null,null,null,null,null,null,null,null,null,null,null,null,null,null,null,null,null,null,null,null,null,null,null,null,null,null,null,null,null,null,null,null,"○　産前産後休業取得申出時に記載した終了予定年月日より早く産休を終了した場合は、『産前産後休業終了届』（当届書の「共通記載","○　産前産後休業取得申出時に記載した終了予定年月日より早く産休を終了した場合は、『産前産後休業終了届』（当届書の「共通記載"]
[]
[]
[]
[]
["   　欄」と「B.終了」欄に記入）を提出してください。",null,null,null,null,null,null,null,null,null,null,null,null,null,null,null,null,null,null,null,null,null,null,null,null,null,null,null,null,null,null,null,null,null,null,null,null,null,null,null,null,null,null,null,null,null,null,null,null,null,null,null,null,null,null,null,null,null,null,null,null,null,null,null,null,null,null,null,null,null,null,null,null,null,null,null,null,null,null,null,null,null,null,null,null,null,null,null,null,null,null,null,null,null,null,null,null,null,null,null,null,null,null,null,null,null,null,null,null,null,null,null,null,null,null,null,null,null,null,null,"   　欄」と「B.終了」欄に記入）を提出してください。"]
[]
[]
[]
[]
[]
[]
[]
[]
[]
["○　保険料が免除となるのは、産前産後休業開始日の属する月分から、終了日翌日の属する月の前月分までとなります。　",null,null,null,null,null,null,null,null,null,null,null,null,null,null,null,null,null,null,null,null,null,null,null,null,null,null,null,null,null,null,null,null,null,null,null,null,null,null,null,null,null,null,null,null,null,null,null,null,null,null,null,null,null,null,null,null,null,null,null,null,null,null,null,null,null,null,null,null,null,null,null,null,null,null,null,null,null,null,null,null,null,null,null,null,null,null,null,null,null,null,null,null,null,null,null,null,null,null,null,null,null,null,null,null,null,null,null,null,null,null,null,null,null,null,null,null,null,null,"○　保険料が免除となるのは、産前産後休業開始日の属する月分から、終了日翌日の属する月の前月分までとなります。　","○　保険料が免除となるのは、産前産後休業開始日の属する月分から、終了日翌日の属する月の前月分までとなります。　"]

{"sheet":"記入方法等","index":3,"n_rows":80,"n_cols":82,"rows_kept":80,"cut":false,"hidden":false,"merged":[[17,68,18,80],[17,81,18,94],[10,1,10,113],[3,1,3,113],[5,1,5,113],[7,1,7,113],[8,1,8,113],[9,1,9,113],[17,60,18,62],[13,1,13,11],[17,3,17,21],[17,30,18,36],[17,37,18,39],[17,40,18,42],[17,43,18,45],[18,3,18,21],[17,46,18,48],[17,49,18,50],[17,51,18,53],[17,54,18,56],[17,57,18,59],[26,24,26,113],[28,3,28,21],[30,3,30,21],[31,3,31,21],[31,30,32,39],[31,40,31,42],[31,43,31,45],[31,46,31,48],[31,49,31,51],[31,52,31,54],[31,55,31,57],[32,3,32,21],[32,40,32,42],[32,43,32,45],[32,46,32,48],[32,49,32,51],[32,52,32,54],[32,55,32,57],[66,3,66,21],[35,24,35,113],[40,3,40,21],[41,3,41,21],[44,3,44,21],[47,3,47,21],[47,24,47,113],[51,3,51,21],[55,3,55,21],[61,3,61,21],[63,3,63,21],[65,3,65,21],[77,3,77,113],[78,3,78,113],[79,3,79,113],[67,3,67,21],[68,1,68,10],[71,3,71,113],[72,3,72,113],[73,3,73,113],[74,3,74,113]]}
[]
[]
[]
[null,"この申出書は、産前42日(多胎妊娠の場合は98日)～産後56日の間に、妊娠または出産（妊娠85日目以降の早産・死産・"]
[]
[null,"流産・人工妊娠中絶含む）を理由とした産前産後休業を取得した場合にご提出いただくものです。"]
[]
[null,"・現在、育児休業中で保険料免除の申出をされている被保険者が続けて産前産後休業を取得する場合、産前産後休業の保険料免除の方が優先されます。"]
[null," 育児休業中・養育特例申出中に産前産後休業を取得した場合は、産休開始日で育休・養育特例措置は終了となりますが、『育児休業等取得者終了届』"]
[null,"  『養育期間標準報酬月額特例終了届』 の提出は不要です。"]
[null,"・役員、経営担当者等の使用者は産前産後休業取得の申出はできますが、育児休業等取得の申出は、原則できませんのでご注意ください。"]
[]
[]
[null,"記入方法"]
[]
[null,"提出者記入欄",null,null,null,null,null,null,null,null,null,null,null,null,null,null,null,null,null,null,null,null,null,null,null,":",null,"事業所整理記号は下図を参照し、新規適用時または名称･所在地変更時に付された記号をご記入ください。"]
[]
[null,null,null,null,null,null,null,null,null,null,null,null,null,null,null,null,null,null,null,null,null,null,null,null,null,null,null,null,null,null,"事業所\n整理記号",null,null,null,null,null,null,null,null,null,null,null,null,0,null,null,1,null,null,"—",null,"イ",null,null,"ロ",null,null,"ハ",null,null,null,null,null,null,null,null,null,null,"健康保険\n事業所記号",null,null,null,null,null,null,null,null,null,null,null,null,111]
[null,null,null,"　　　　　　　　　　　　　"]
[]
[null,"＜共通記載欄＞　　①～⑧は必ず記入してください。出産後に提出する場合は⑨、⑩もご記入ください。"]
[]
[null,"①被保険者整理番号",null,null,null,null,null,null,null,null,null,null,null,null,null,null,null,null,null,null,null,null,null,null,null,":",null,"資格取得時に払い出しされた被保険者整理番号を、必ずご記入ください。"]
[]
[null,"②個人番号",null,null,null,null,null,null,null,null,null,null,null,null,null,null,null,null,null,null,null,null,null,null,null,":",null,"本人確認を行ったうえで、個人番号をご記入ください。基礎年金番号を記入する場合は、年金手帳等に記載されている10桁の番号"]
[null," （基礎年金番号）",null,null,null,null,null,null,null,null,null,null,null,null,null,null,null,null,null,null,null,null,null,null,null,null,null,"を左詰めでご記入ください。"]
[]
[null,"③被保険者氏名",null,null,null,null,null,null,null,null,null,null,null,null,null,null,null,null,null,null,null,null,null,null,null,":",null,"氏名は住民票に登録されているものと同じ氏名をご記入ください。フリガナはカタカナで正確にご記入ください。"]
[]
[null,"④被保険者生年月日　",null,null,null,null,null,null,null,null,null,null,null,null,null,null,null,null,null,null,null,null,null,null,null,":",null,"年号は該当する番号を〇で囲んでください。生年月日は下図を参照しご記入ください。"]
[]
[null,null,null,null,null,null,null,null,null,null,null,null,null,null,null,null,null,null,null,null,null,null,null,null,null,null,null,null,null,null,"5.昭和\n7.平成\n9.令和",null,null,null,null,null,null,null,null,null,null,null,null,"年",null,null,null,null,null,"月",null,null,null,null,null,"日"]
[null,null,null,"　　　　　　　　　　　　　",null,null,null,null,null,null,null,null,null,null,null,null,null,null,null,null,null,null,null,null,null,null,null,null,null,null,null,null,null,null,null,null,null,null,null,null,6,null,null,3,6,null,0,null,0,5,null,null,0,null,3,3]
[]
[null,"⑤出産予定年月日     ",null,null,null,null,null,null,null,null,null,null,null,null,null,null,null,null,null,null,null,null,null,null,null,":",null,"出産後に提出する場合も、出産予定年月日をご記入ください。"]
[]
[null,"⑥出産種別　",null,null,null,null,null,null,null,null,null,null,null,null,null,null,null,null,null,null,null,null,null,null,null,":",null,"出生児が1人（予定）の場合は 「0.単胎」 を〇で囲んでください。"]
[null,null,null,null,null,null,null,null,null,null,null,null,null,null,null,null,null,null,null,null,null,null,null,null,null,null,null,"出生児が2人以上（予定）の場合は 「1.多胎」 を〇で囲んでください。"]
[]
[null,"⑦産前産後休業開始年月日    ",null,null,null,null,null,null,null,null,null,null,null,null,null,null,null,null,null,null,null,null,null,null,null,":",null,"「⑥出産種別」 が 「0.単胎」 の場合、「⑤出産予定年月日」 以前42日の範囲内の日付をご記入ください。       "]
[null,null,null,"　　　　　　　　　　　　　　",null,null,null,null,null,null,null,null,null,null,null,null,null,null,null,null,null,null,null,null,null,null,null,"「⑥出産種別」が　「1.多胎」 の場合、「⑤出産予定年月日」 以前98日の範囲内の日付をご記入ください。"]
[null,null,null,null,null,null,null,null,null,null,null,null,null,null,null,null,null,null,null,null,null,null,null,null,null,null,null,"「A.変更」「B.終了」 の届出をされる場合は、最初に産前産後休業の申出をされた際に記入した開始年月日をご記入ください。    "]
[]
[null,"⑧産前産後休業終了予定年月日　　　　　　　　　",null,null,null,null,null,null,null,null,null,null,null,null,null,null,null,null,null,null,null,null,null,null,null,":",null,"「⑤出産予定年月日」 の翌日以降56日以内の日付をご記入ください。    "]
[null,null,null,"　　　　　　　　　　　　",null,null,null,null,null,null,null,null,null,null,null,null,null,null,null,null,null,null,null,null,null,null,null,"「A.変更」 「B.終了」 の届出をされる場合は、最初に産前産後休業の申出をされた際に記入した終了予定日をご記入ください。"]
[]
[null,"⑨出生児の氏名",null,null,null,null,null,null,null,null,null,null,null,null,null,null,null,null,null,null,null,null,null,null,null,":",null,"出産後に提出する場合にご記入ください。複数人の場合は列記してください。    "]
[]
[null,"⑪備考　",null,null,null,null,null,null,null,null,null,null,null,null,null,null,null,null,null,null,null,null,null,null,null,":",null,"死産・流産・人工妊娠中絶の場合は、「⑨出生児の氏名」 は空欄にし、備考にその旨をご記入ください。   "]
[]
[null,"＜A.変更＞　出産予定年月日と実際の出産年月日が異なった場合は、共通記載欄①～⑪を記入のうえ、⑫～⑮もご記入ください。　　　　"]
[null,null,null,"　"]
[null,"⑫変更後の出産(予定)年月日     ",null,null,null,null,null,null,null,null,null,null,null,null,null,null,null,null,null,null,null,null,null,null,null,":",null,"実際の出産年月日、または変更後の出産予定年月日をご記入ください。"]
[]
[null,"⑬変更後の出産種別",null,null,null,null,null,null,null,null,null,null,null,null,null,null,null,null,null,null,null,null,null,null,null,":",null,"変更の有無にかかわらず、必ずご記入ください。"]
[null,null,null,"　　　　　　　　　　　　"]
[null,"⑭産前産後休業開始年月日　　　　　　　　　",null,null,null,null,null,null,null,null,null,null,null,null,null,null,null,null,null,null,null,null,null,null,null,":",null,"出産年月日が予定より前だった場合、変更後の出産（予定）年月日を基準として、産前42日（多胎は98日）の範囲内で休業    "]
[null,null,null,null,null,null,null,null,null,null,null,null,null,null,null,null,null,null,null,null,null,null,null,null,null,null,null,"していた日付に変更してください。"]
[null,null,null,null,null,null,null,null,null,null,null,null,null,null,null,null,null,null,null,null,null,null,null,null,null,null,null,"実際の出産年月日が予定より後だった場合は、変更前の開始予定年月日をそのままご記入ください。    "]
[]
[null,"⑮産前産後休業終了予定年月日　　　　　　　　　",null,null,null,null,null,null,null,null,null,null,null,null,null,null,null,null,null,null,null,null,null,null,null,":",null,"実際の出産年月日の翌日以降56日以内の日付に変更してください。"]
[null,null,null,"　　"]
[null,"＜B.終了＞　申出の際に記入された終了予定年月日より早く産前産後休業を終了した場合は、共通記載欄①～⑪を記入のうえ、⑯もご記入ください。"]
[]
[null,"⑯産前産後休業終了年月日    ",null,null,null,null,null,null,null,null,null,null,null,null,null,null,null,null,null,null,null,null,null,null,null,":",null,"実際に産前産後休業を終了した日付をご記入ください。"]
[null,null,null,null,null,null,null,null,null,null,null,null,null,null,null,null,null,null,null,null,null,null,null,null,null,null,null,"最初に産前産後休業の申出をされた際に記入した終了予定年月日と同日の場合は、提出の必要はありません。    "]
[]
[null,null,null,"　　　　　　　　　　　"]
[null,"お知らせ　"]
[]
[null,"・申出の場合"]
[null,null,null,"この申出により、産前産後休業を開始した日の属する月から終了した日の翌日が属する月の前月までの期間について、健康保険・厚生年金保険の保険料が"]
[null,null,null,"事業主・被保険者分とも免除されます。なお、保険料の免除期間中も健康保険・厚生年金保険の被保険者資格が存続しているため、標準報酬月額"]
[null,null,null,"に基づき、将来の年金額の計算が行われます。産前産後休業等の期間内に支払われた賞与等は、保険料は徴収されませんが標準賞与額として"]
[null,null,null,"決定され、将来の年金額計算等もこの標準賞与額が用いられるとともに、健康保険の年度累計額に算入されます。"]
[]
[null,"・終了の場合"]
[null,null,null,"終了日の翌日が属する月分から健康保険・厚生年金保険の保険料が発生します。産前産後休業終了後に受ける報酬が、従前の標準報酬月額と比較し"]
[null,null,null,"て変動があった場合は、『産前産後休業終了時報酬月額変更届』  『養育期間標準報酬月額特例申出書』  を提出することができます。ただし、終了後引き"]
[null,null,null,"続き育児休業等を開始する場合は、産前産後休業終了時報酬月額変更に該当しませんので、『育児休業等取得者申出書』 のみをご提出ください｡"]